Department family,Entity,Date,Expense type,Expense area,Supplier,Transaction number,Amount
Department of Health,Leicestershire Partnership NHS Trust,01/09/22,Unitary Payment,"The Agnes Unit (AKA Assessment and Treatment Centre) (P85, LPT)",ARDEN PARTNERSHIP (LEICESTER),SI0102,131261.17
Department of Health,Leicestershire Partnership NHS Trust,01/09/22,Healthcare Services / Recharges from Non-NHS Bodies,Adult Eating Disorder Collaborative,PRIORY GROUP,301AUG22LECAED,105670.66
Department of Health,Leicestershire Partnership NHS Trust,05/09/22,Services / Recharges from NHS Trusts,Inter Unit I & E Distribution,UHL NHS TRUST (RWE),L0263075,152116.08
Department of Health,Leicestershire Partnership NHS Trust,05/09/22,BOUGHT IN GPs,Mill Lodge,THE LIMES MEDICAL CTR,57,22205.92
Department of Health,Leicestershire Partnership NHS Trust,05/09/22,BOUGHT IN GPs,Stewart House,THE LIMES MEDICAL CTR,57,25231.84
Department of Health,Leicestershire Partnership NHS Trust,05/09/22,Rent,Bridge Park Plaza - First Floor (LPT),FISHER HARG PROCT LTD,717353,80507.52
Department of Health,Leicestershire Partnership NHS Trust,05/09/22,External Data Processing / Storage,Records & information Governance,L&R STORAGE,4010453,33672.72
Department of Health,Leicestershire Partnership NHS Trust,05/09/22,Nurse - Band 6 -Agency,Adult County West Leicestershire CMHT,HCL NURSING,HNSI0001124,863.96
Department of Health,Leicestershire Partnership NHS Trust,05/09/22,Nurse - Band 7 - Agency,Adult County- East Leicester CMHT,HCL NURSING,HNSI0001124,1079.95
Department of Health,Leicestershire Partnership NHS Trust,05/09/22,NURSE - BAND 2 - AGENCY,Agnes Unit,HCL NURSING,HNSI0001124,18889.08
Department of Health,Leicestershire Partnership NHS Trust,05/09/22,NURSE - BAND 5 - AGENCY,Agnes Unit,HCL NURSING,HNSI0001124,25987.95
Department of Health,Leicestershire Partnership NHS Trust,05/09/22,NURSE - BAND 2 - AGENCY,Ashby Ward (Bradgate Unit),HCL NURSING,HNSI0001124,15112.94
Department of Health,Leicestershire Partnership NHS Trust,05/09/22,NURSE - BAND 5 - AGENCY,Ashby Ward (Bradgate Unit),HCL NURSING,HNSI0001124,10683.02
Department of Health,Leicestershire Partnership NHS Trust,05/09/22,NURSE - BAND 5 - AGENCY,Aston Ward (Bradgate Unit),HCL NURSING,HNSI0001124,2314.60
Department of Health,Leicestershire Partnership NHS Trust,05/09/22,NURSE - BAND 2 - AGENCY,Beaumont Ward - Bradgate Unit,HCL NURSING,HNSI0001124,7044.25
Department of Health,Leicestershire Partnership NHS Trust,05/09/22,NURSE - BAND 5 - AGENCY,Beaumont Ward - Bradgate Unit,HCL NURSING,HNSI0001124,13445.04
Department of Health,Leicestershire Partnership NHS Trust,05/09/22,NURSE - BAND 2 - AGENCY,Belvoir Psychiatric Intensive Care Unit,HCL NURSING,HNSI0001124,4479.81
Department of Health,Leicestershire Partnership NHS Trust,05/09/22,NURSE - BAND 5 - AGENCY,Belvoir Psychiatric Intensive Care Unit,HCL NURSING,HNSI0001124,6763.38
Department of Health,Leicestershire Partnership NHS Trust,05/09/22,NURSE - BAND 2 - AGENCY,Bosworth Ward - Bradgate Unit,HCL NURSING,HNSI0001124,1588.00
Department of Health,Leicestershire Partnership NHS Trust,05/09/22,NURSE - BAND 5 - AGENCY,Bosworth Ward - Bradgate Unit,HCL NURSING,HNSI0001124,3868.14
Department of Health,Leicestershire Partnership NHS Trust,05/09/22,NURSE - BAND 2 - AGENCY,Cedar (Willows),HCL NURSING,HNSI0001124,2683.06
Department of Health,Leicestershire Partnership NHS Trust,05/09/22,NURSE - BAND 5 - AGENCY,Cedar (Willows),HCL NURSING,HNSI0001124,1600.01
Department of Health,Leicestershire Partnership NHS Trust,05/09/22,Nurse - Band 6 -Agency,City West CMHT MHSOP,HCL NURSING,HNSI0001124,2112.10
Department of Health,Leicestershire Partnership NHS Trust,05/09/22,NURSE - BAND 2 - AGENCY,Coleman Ward,HCL NURSING,HNSI0001124,9367.69
Department of Health,Leicestershire Partnership NHS Trust,05/09/22,NURSE - BAND 5 - AGENCY,Coleman Ward,HCL NURSING,HNSI0001124,2065.37
Department of Health,Leicestershire Partnership NHS Trust,05/09/22,NURSE - BAND 5 - AGENCY,Crisis Resolution,HCL NURSING,HNSI0001124,2617.69
Department of Health,Leicestershire Partnership NHS Trust,05/09/22,NURSE - BAND 2 - AGENCY,Griffin Ward (HPC),HCL NURSING,HNSI0001124,2084.90
Department of Health,Leicestershire Partnership NHS Trust,05/09/22,NURSE - BAND 5 - AGENCY,Griffin Ward (HPC),HCL NURSING,HNSI0001124,4887.62
Department of Health,Leicestershire Partnership NHS Trust,05/09/22,NURSE - BAND 2 - AGENCY,Gwendolen Ward,HCL NURSING,HNSI0001124,1808.73
Department of Health,Leicestershire Partnership NHS Trust,05/09/22,NURSE - BAND 5 - AGENCY,Gwendolen Ward,HCL NURSING,HNSI0001124,2028.38
Department of Health,Leicestershire Partnership NHS Trust,05/09/22,NURSE - BAND 2 - AGENCY,Heather Ward,HCL NURSING,HNSI0001124,7148.84
Department of Health,Leicestershire Partnership NHS Trust,05/09/22,NURSE - BAND 2 - AGENCY,Kirby Ward,HCL NURSING,HNSI0001124,1740.21
Department of Health,Leicestershire Partnership NHS Trust,05/09/22,NURSE - BAND 5 - AGENCY,Kirby Ward,HCL NURSING,HNSI0001124,1079.68
Department of Health,Leicestershire Partnership NHS Trust,05/09/22,NURSE - BAND 2 - AGENCY,Maple Ward,HCL NURSING,HNSI0001124,3283.52
Department of Health,Leicestershire Partnership NHS Trust,05/09/22,NURSE - BAND 5 - AGENCY,Maple Ward,HCL NURSING,HNSI0001124,4621.51
Department of Health,Leicestershire Partnership NHS Trust,05/09/22,Nurse - Band 6 -Agency,Mental Health Liaison Team,HCL NURSING,HNSI0001124,1877.39
Department of Health,Leicestershire Partnership NHS Trust,05/09/22,NURSE - BAND 2 - AGENCY,Mill Lodge,HCL NURSING,HNSI0001124,252.34
Department of Health,Leicestershire Partnership NHS Trust,05/09/22,NURSE - BAND 5 - AGENCY,Mill Lodge,HCL NURSING,HNSI0001124,2621.50
Department of Health,Leicestershire Partnership NHS Trust,05/09/22,NURSE - BAND 2 - AGENCY,Phoenix Ward (HPC),HCL NURSING,HNSI0001124,3855.19
Department of Health,Leicestershire Partnership NHS Trust,05/09/22,NURSE - BAND 5 - AGENCY,Phoenix Ward (HPC),HCL NURSING,HNSI0001124,3097.23
Department of Health,Leicestershire Partnership NHS Trust,05/09/22,NURSE - BAND 2 - AGENCY,Place Of Safety Assessment Unit,HCL NURSING,HNSI0001124,4261.07
Department of Health,Leicestershire Partnership NHS Trust,05/09/22,NURSE - BAND 5 - AGENCY,Place Of Safety Assessment Unit,HCL NURSING,HNSI0001124,1532.93
Department of Health,Leicestershire Partnership NHS Trust,05/09/22,NURSE - BAND 2 - AGENCY,Stewart House,HCL NURSING,HNSI0001124,735.47
Department of Health,Leicestershire Partnership NHS Trust,05/09/22,NURSE - BAND 5 - AGENCY,Stewart House,HCL NURSING,HNSI0001124,453.80
Department of Health,Leicestershire Partnership NHS Trust,05/09/22,NURSE - BAND 2 - AGENCY,Sycamore (Willows),HCL NURSING,HNSI0001124,2215.65
Department of Health,Leicestershire Partnership NHS Trust,05/09/22,NURSE - BAND 5 - AGENCY,Sycamore (Willows),HCL NURSING,HNSI0001124,5474.76
Department of Health,Leicestershire Partnership NHS Trust,05/09/22,NURSE - BAND 2 - AGENCY,Thornton Ward - Bradgate Unit,HCL NURSING,HNSI0001124,2508.59
Department of Health,Leicestershire Partnership NHS Trust,05/09/22,NURSE - BAND 5 - AGENCY,Thornton Ward - Bradgate Unit,HCL NURSING,HNSI0001124,2013.92
Department of Health,Leicestershire Partnership NHS Trust,05/09/22,NURSE - BAND 2 - AGENCY,Watermead Ward (Bradgate Unit),HCL NURSING,HNSI0001124,207.62
Department of Health,Leicestershire Partnership NHS Trust,05/09/22,NURSE - BAND 5 - AGENCY,Watermead Ward (Bradgate Unit),HCL NURSING,HNSI0001124,5160.10
Department of Health,Leicestershire Partnership NHS Trust,05/09/22,NURSE - BAND 2 - AGENCY,Welford Ward,HCL NURSING,HNSI0001124,405.06
Department of Health,Leicestershire Partnership NHS Trust,05/09/22,NURSE - BAND 5 - AGENCY,Welford Ward,HCL NURSING,HNSI0001124,1070.53
Department of Health,Leicestershire Partnership NHS Trust,05/09/22,Nurse - Band 6 -Agency,CAMHS HUB / CAP,HCL WORKFORCE SOLUTIONS,HWSI0001336,9543.89
Department of Health,Leicestershire Partnership NHS Trust,05/09/22,Nurse - Band 6 -Agency,CAMHS Waiting List Monies,HCL WORKFORCE SOLUTIONS,HWSI0001336,17392.93
Department of Health,Leicestershire Partnership NHS Trust,05/09/22,Nurse - Band 6 -Agency,Crisis Response and Home Treatment,HCL WORKFORCE SOLUTIONS,HWSI0001336,1934.85
Department of Health,Leicestershire Partnership NHS Trust,05/09/22,NURSE - BAND 2 - AGENCY,CAMHS ED Team,HCL NURSING,HNSI0001126,6735.57
Department of Health,Leicestershire Partnership NHS Trust,05/09/22,NURSE - BAND 2 - AGENCY,CAMHS Inpatient Service,HCL NURSING,HNSI0001126,23639.21
Department of Health,Leicestershire Partnership NHS Trust,05/09/22,NURSE - BAND 5 - AGENCY,CAMHS Inpatient Service,HCL NURSING,HNSI0001126,5052.69
Department of Health,Leicestershire Partnership NHS Trust,05/09/22,Nurse - Band 6 -Agency,CAMHS Waiting List Monies,HCL NURSING,HNSI0001126,5166.78
Department of Health,Leicestershire Partnership NHS Trust,05/09/22,NURSE - BAND 2 - AGENCY,Langley Ward ED Inpatient Service,HCL NURSING,HNSI0001126,5320.73
Department of Health,Leicestershire Partnership NHS Trust,05/09/22,NURSE - BAND 5 - AGENCY,Langley Ward ED Inpatient Service,HCL NURSING,HNSI0001126,3813.97
Department of Health,Leicestershire Partnership NHS Trust,05/09/22,HR / Payroll Services,HR Employment Services,LINCOLNSHIRE PART NHSFT(RP7),L0000412,29360.83
Department of Health,Leicestershire Partnership NHS Trust,06/09/22,Payroll Deductions -Salary Sacrifice Cars Scheme,Balance Sheet Collection,TUSKER,64714,33160.70
Department of Health,Leicestershire Partnership NHS Trust,06/09/22,NURSE - BAND 2 - AGENCY,Beechwood Ward,HCL NURSING,HNSI0001121,3615.68
Department of Health,Leicestershire Partnership NHS Trust,06/09/22,NURSE - BAND 5 - AGENCY,Beechwood Ward,HCL NURSING,HNSI0001121,2014.34
Department of Health,Leicestershire Partnership NHS Trust,06/09/22,NURSE - BAND 5 - AGENCY,City Planned Care - East,HCL NURSING,HNSI0001121,12602.22
Department of Health,Leicestershire Partnership NHS Trust,06/09/22,NURSE - BAND 5 - AGENCY,City Planned Care - West,HCL NURSING,HNSI0001121,7718.15
Department of Health,Leicestershire Partnership NHS Trust,06/09/22,NURSE - BAND 2 - AGENCY,Clarendon Ward,HCL NURSING,HNSI0001121,4876.37
Department of Health,Leicestershire Partnership NHS Trust,06/09/22,NURSE - BAND 5 - AGENCY,Clarendon Ward,HCL NURSING,HNSI0001121,2974.37
Department of Health,Leicestershire Partnership NHS Trust,06/09/22,NURSE - BAND 2 - AGENCY,Coalville Snibston Ward,HCL NURSING,HNSI0001121,4050.85
Department of Health,Leicestershire Partnership NHS Trust,06/09/22,NURSE - BAND 5 - AGENCY,Coalville Snibston Ward,HCL NURSING,HNSI0001121,530.69
Department of Health,Leicestershire Partnership NHS Trust,06/09/22,NURSE - BAND 2 - AGENCY,Coalville Ward 2,HCL NURSING,HNSI0001121,683.28
Department of Health,Leicestershire Partnership NHS Trust,06/09/22,NURSE - BAND 5 - AGENCY,Coalville Ward 2,HCL NURSING,HNSI0001121,1541.40
Department of Health,Leicestershire Partnership NHS Trust,06/09/22,NURSE - BAND 5 - AGENCY,Dalgliesh Ward,HCL NURSING,HNSI0001121,5433.14
Department of Health,Leicestershire Partnership NHS Trust,06/09/22,NURSE - BAND 5 - AGENCY,"East Planned Care - Oadby,Wigston & Harborough",HCL NURSING,HNSI0001121,1725.75
Department of Health,Leicestershire Partnership NHS Trust,06/09/22,NURSE - BAND 2 - AGENCY,H&B Comm Hosp East Ward,HCL NURSING,HNSI0001121,4124.76
Department of Health,Leicestershire Partnership NHS Trust,06/09/22,NURSE - BAND 5 - AGENCY,H&B Comm Hosp East Ward,HCL NURSING,HNSI0001121,5686.87
Department of Health,Leicestershire Partnership NHS Trust,06/09/22,NURSE - BAND 2 - AGENCY,H&B Comm Hosp North Ward,HCL NURSING,HNSI0001121,4466.74
Department of Health,Leicestershire Partnership NHS Trust,06/09/22,NURSE - BAND 5 - AGENCY,H&B Comm Hosp North Ward,HCL NURSING,HNSI0001121,2103.46
Department of Health,Leicestershire Partnership NHS Trust,06/09/22,NURSE - BAND 2 - AGENCY,Lough Swithland Ward,HCL NURSING,HNSI0001121,4555.85
Department of Health,Leicestershire Partnership NHS Trust,06/09/22,NURSE - BAND 5 - AGENCY,Lough Swithland Ward,HCL NURSING,HNSI0001121,1184.30
Department of Health,Leicestershire Partnership NHS Trust,06/09/22,NURSE - BAND 2 - AGENCY,Rutland Ward Nursing,HCL NURSING,HNSI0001121,1019.28
Department of Health,Leicestershire Partnership NHS Trust,06/09/22,NURSE - BAND 5 - AGENCY,Rutland Ward Nursing,HCL NURSING,HNSI0001121,3119.31
Department of Health,Leicestershire Partnership NHS Trust,06/09/22,NURSE - BAND 2 - AGENCY,St Lukes Stroke Ward,HCL NURSING,HNSI0001121,2697.09
Department of Health,Leicestershire Partnership NHS Trust,06/09/22,NURSE - BAND 5 - AGENCY,St Lukes Stroke Ward,HCL NURSING,HNSI0001121,1189.12
Department of Health,Leicestershire Partnership NHS Trust,06/09/22,NURSE - BAND 2 - AGENCY,St Lukes Ward 3,HCL NURSING,HNSI0001121,941.95
Department of Health,Leicestershire Partnership NHS Trust,06/09/22,NURSE - BAND 5 - AGENCY,St Lukes Ward 3,HCL NURSING,HNSI0001121,2723.84
Department of Health,Leicestershire Partnership NHS Trust,06/09/22,NURSE - BAND 5 - AGENCY,Wakerley Ward,HCL NURSING,HNSI0001121,1221.52
Department of Health,Leicestershire Partnership NHS Trust,06/09/22,Course / Training Expenses,Transformational Funding,THE DECIDER,2009,49999.00
Department of Health,Leicestershire Partnership NHS Trust,07/09/22,Med Trainees - FY1,Medical Trainees,UHL NHS TRUST (RWE),L0263113,34641.80
Department of Health,Leicestershire Partnership NHS Trust,07/09/22,Professional & Technical Agency,LLR Shared Care Record Programme,RUTLAND COUNTY COUNCIL,9140883,67765.00
Department of Health,Leicestershire Partnership NHS Trust,08/09/22,Payroll Deductions -Home Electronics 71 Aug 22,Balance Sheet Collection,SME HCI LTD,140963,35777.40
Department of Health,Leicestershire Partnership NHS Trust,08/09/22,NURSE - BAND 2 - AGENCY,Beechwood Ward,HCL NURSING,HNSI0001125,3774.66
Department of Health,Leicestershire Partnership NHS Trust,08/09/22,NURSE - BAND 5 - AGENCY,Beechwood Ward,HCL NURSING,HNSI0001125,3019.78
Department of Health,Leicestershire Partnership NHS Trust,08/09/22,NURSE - BAND 5 - AGENCY,City Planned Care - East,HCL NURSING,HNSI0001125,8506.99
Department of Health,Leicestershire Partnership NHS Trust,08/09/22,NURSE - BAND 5 - AGENCY,City Planned Care - West,HCL NURSING,HNSI0001125,10679.05
Department of Health,Leicestershire Partnership NHS Trust,08/09/22,NURSE - BAND 2 - AGENCY,Clarendon Ward,HCL NURSING,HNSI0001125,2059.56
Department of Health,Leicestershire Partnership NHS Trust,08/09/22,NURSE - BAND 5 - AGENCY,Clarendon Ward,HCL NURSING,HNSI0001125,6543.35
Department of Health,Leicestershire Partnership NHS Trust,08/09/22,NURSE - BAND 2 - AGENCY,Coalville Snibston Ward,HCL NURSING,HNSI0001125,3844.69
Department of Health,Leicestershire Partnership NHS Trust,08/09/22,NURSE - BAND 5 - AGENCY,Coalville Snibston Ward,HCL NURSING,HNSI0001125,868.72
Department of Health,Leicestershire Partnership NHS Trust,08/09/22,NURSE - BAND 2 - AGENCY,Coalville Ward 2,HCL NURSING,HNSI0001125,1199.09
Department of Health,Leicestershire Partnership NHS Trust,08/09/22,NURSE - BAND 5 - AGENCY,Coalville Ward 2,HCL NURSING,HNSI0001125,520.04
Department of Health,Leicestershire Partnership NHS Trust,08/09/22,NURSE - BAND 2 - AGENCY,Dalgliesh Ward,HCL NURSING,HNSI0001125,4876.05
Department of Health,Leicestershire Partnership NHS Trust,08/09/22,NURSE - BAND 5 - AGENCY,Dalgliesh Ward,HCL NURSING,HNSI0001125,3496.79
Department of Health,Leicestershire Partnership NHS Trust,08/09/22,NURSE - BAND 5 - AGENCY,"East Planned Care - Oadby,Wigston & Harborough",HCL NURSING,HNSI0001125,1182.58
Department of Health,Leicestershire Partnership NHS Trust,08/09/22,NURSE - BAND 2 - AGENCY,H&B Comm Hosp East Ward,HCL NURSING,HNSI0001125,3383.36
Department of Health,Leicestershire Partnership NHS Trust,08/09/22,NURSE - BAND 5 - AGENCY,H&B Comm Hosp East Ward,HCL NURSING,HNSI0001125,6352.07
Department of Health,Leicestershire Partnership NHS Trust,08/09/22,NURSE - BAND 2 - AGENCY,H&B Comm Hosp North Ward,HCL NURSING,HNSI0001125,2381.33
Department of Health,Leicestershire Partnership NHS Trust,08/09/22,NURSE - BAND 5 - AGENCY,H&B Comm Hosp North Ward,HCL NURSING,HNSI0001125,1060.51
Department of Health,Leicestershire Partnership NHS Trust,08/09/22,NURSE - BAND 2 - AGENCY,Lough Swithland Ward,HCL NURSING,HNSI0001125,4110.15
Department of Health,Leicestershire Partnership NHS Trust,08/09/22,NURSE - BAND 5 - AGENCY,Lough Swithland Ward,HCL NURSING,HNSI0001125,3810.97
Department of Health,Leicestershire Partnership NHS Trust,08/09/22,NURSE - BAND 5 - AGENCY,Rutland Ward Nursing,HCL NURSING,HNSI0001125,4698.31
Department of Health,Leicestershire Partnership NHS Trust,08/09/22,NURSE - BAND 5 - AGENCY,St Lukes Stroke Ward,HCL NURSING,HNSI0001125,6831.57
Department of Health,Leicestershire Partnership NHS Trust,08/09/22,NURSE - BAND 2 - AGENCY,St Lukes Ward 3,HCL NURSING,HNSI0001125,5400.13
Department of Health,Leicestershire Partnership NHS Trust,08/09/22,NURSE - BAND 5 - AGENCY,St Lukes Ward 3,HCL NURSING,HNSI0001125,1386.11
Department of Health,Leicestershire Partnership NHS Trust,08/09/22,NURSE - BAND 5 - AGENCY,Wakerley Ward,HCL NURSING,HNSI0001125,916.14
Department of Health,Leicestershire Partnership NHS Trust,09/09/22,Computer Software,HIS,SOFTCAT PLC,INVUK556364,25039.53
Department of Health,Leicestershire Partnership NHS Trust,12/09/22,Electricity,"Belvoir Intensive Care Unit (P7, LPT)",UHL NHS TRUST (RWE),L0263223,2108.98
Department of Health,Leicestershire Partnership NHS Trust,12/09/22,Electricity,"Bennion Centre (including Forest Grange Day Unit) (P8, LPT)",UHL NHS TRUST (RWE),L0263223,7425.09
Department of Health,Leicestershire Partnership NHS Trust,12/09/22,Electricity,"Bradgate Unit (including Glenvale day Unit) (P7, LPT)",UHL NHS TRUST (RWE),L0263223,20425.38
Department of Health,Leicestershire Partnership NHS Trust,12/09/22,Contract : Premises Security,Estates & Facilities Central,UHL NHS TRUST (RWE),L0263223,2295.52
Department of Health,Leicestershire Partnership NHS Trust,12/09/22,Electricity,"Herschel Prins (P9, LPT)",UHL NHS TRUST (RWE),L0263223,5370.74
Department of Health,Leicestershire Partnership NHS Trust,12/09/22,Electricity,"Leicester Frith - Utilities (P38, LPT)",UHL NHS TRUST (RWE),L0263223,4218.60
Department of Health,Leicestershire Partnership NHS Trust,12/09/22,Electricity,Pharmacy Portacabin,UHL NHS TRUST (RWE),L0263223,1546.15
Department of Health,Leicestershire Partnership NHS Trust,12/09/22,Electricity,Psychiatric Education and Training Centre,UHL NHS TRUST (RWE),L0263223,1000.89
Department of Health,Leicestershire Partnership NHS Trust,12/09/22,Services / Recharges from NHS Trusts,UHL Expenditure Contract,UHL NHS TRUST (RWE),L0263223,5552.23
Department of Health,Leicestershire Partnership NHS Trust,12/09/22,Electricity,"Belvoir Intensive Care Unit (P7, LPT)",UHL NHS TRUST (RWE),L0263224,2108.98
Department of Health,Leicestershire Partnership NHS Trust,12/09/22,Electricity,"Bennion Centre (including Forest Grange Day Unit) (P8, LPT)",UHL NHS TRUST (RWE),L0263224,7425.09
Department of Health,Leicestershire Partnership NHS Trust,12/09/22,Electricity,"Bradgate Unit (including Glenvale day Unit) (P7, LPT)",UHL NHS TRUST (RWE),L0263224,20425.38
Department of Health,Leicestershire Partnership NHS Trust,12/09/22,Contract : Premises Security,Estates & Facilities Central,UHL NHS TRUST (RWE),L0263224,2295.52
Department of Health,Leicestershire Partnership NHS Trust,12/09/22,Electricity,"Herschel Prins (P9, LPT)",UHL NHS TRUST (RWE),L0263224,5370.74
Department of Health,Leicestershire Partnership NHS Trust,12/09/22,Electricity,"Leicester Frith - Utilities (P38, LPT)",UHL NHS TRUST (RWE),L0263224,4218.60
Department of Health,Leicestershire Partnership NHS Trust,12/09/22,Electricity,Pharmacy Portacabin,UHL NHS TRUST (RWE),L0263224,1546.15
Department of Health,Leicestershire Partnership NHS Trust,12/09/22,Electricity,Psychiatric Education and Training Centre,UHL NHS TRUST (RWE),L0263224,1000.89
Department of Health,Leicestershire Partnership NHS Trust,12/09/22,Services / Recharges from NHS Trusts,UHL Expenditure Contract,UHL NHS TRUST (RWE),L0263224,5552.23
Department of Health,Leicestershire Partnership NHS Trust,12/09/22,Crs_NHS_LT1y -Resus Inventory Supplied.,Balance Sheet Collection,SUPPLY CHAIN CO LTD,1123124527,38598.44
Department of Health,Leicestershire Partnership NHS Trust,12/09/22,Insurance Costs,Chief Executives Office,NHS LITIGATION AUTHORITY,SICX409974,192613.10
Department of Health,Leicestershire Partnership NHS Trust,13/09/22,Computer Software,FM Transformation,INVIDA LTD,SI-497,28000.80
Department of Health,Leicestershire Partnership NHS Trust,14/09/22,WIP Project Not in BS - Buildings excl Dwellings,Work in Progress,TILBURY DOUGLAS CONSTRUCTION LTD,22090033,88304.64
Department of Health,Leicestershire Partnership NHS Trust,14/09/22,WIP Project Not in BS - Buildings excl Dwellings,Work in Progress,TILBURY DOUGLAS CONSTRUCTION LTD,22090029,59324.52
Department of Health,Leicestershire Partnership NHS Trust,14/09/22,WIP Project Not in BS - Buildings excl Dwellings,Work in Progress,TILBURY DOUGLAS CONSTRUCTION LTD,22090031,91118.26
Department of Health,Leicestershire Partnership NHS Trust,14/09/22,WIP Project Not in BS - Buildings excl Dwellings,Work in Progress,TILBURY DOUGLAS CONSTRUCTION LTD,22090056,104187.11
Department of Health,Leicestershire Partnership NHS Trust,14/09/22,WIP Project Not in BS - Buildings excl Dwellings,Work in Progress,TILBURY DOUGLAS CONSTRUCTION LTD,22090065,118564.58
Department of Health,Leicestershire Partnership NHS Trust,14/09/22,Network Costs - WAN Maint,HIS Infrastructure,VIRGIN MEDIA BUSINESS,262421-199,35934.66
Department of Health,Leicestershire Partnership NHS Trust,15/09/22,NURSE - BAND 2 - AGENCY,CAMHS Inpatient Service,Prometheus complex care ltd,0000000483,39454.80
Department of Health,Leicestershire Partnership NHS Trust,15/09/22,NURSE - BAND 2 - AGENCY,CAMHS Inpatient Service,Prometheus complex care ltd,0000000039,-39454.80
Department of Health,Leicestershire Partnership NHS Trust,15/09/22,UHL Facilities Management SLA,Estates Central Invoices To Recharge,UHL NHS TRUST (RWE),L0262446,1073777.42
Department of Health,Leicestershire Partnership NHS Trust,16/09/22,Gas,"Beaumont Leys Health Centre (P94, LPT)",TOTAL GAS & POWER LTD,277780475/22,721.93
Department of Health,Leicestershire Partnership NHS Trust,16/09/22,Gas,"Bennion Centre (including Forest Grange Day Unit) (P8, LPT)",TOTAL GAS & POWER LTD,277780475/22,6696.84
Department of Health,Leicestershire Partnership NHS Trust,16/09/22,Gas,"Bradgate Unit (including Glenvale day Unit) (P7, LPT)",TOTAL GAS & POWER LTD,277780475/22,14444.56
Department of Health,Leicestershire Partnership NHS Trust,16/09/22,Gas,Bridge Park Plaza - First Floor (LPT),TOTAL GAS & POWER LTD,277780475/22,1245.49
Department of Health,Leicestershire Partnership NHS Trust,16/09/22,Gas,"Bridge Park Road - Units 2 and 3 (P148, LPT)",TOTAL GAS & POWER LTD,277780475/22,154.23
Department of Health,Leicestershire Partnership NHS Trust,16/09/22,Gas,"Coalville Community Hospital (P138, LPT)",TOTAL GAS & POWER LTD,277780475/22,7620.54
Department of Health,Leicestershire Partnership NHS Trust,16/09/22,Gas,"Coalville Health Centre (P121, LPT)",TOTAL GAS & POWER LTD,277780475/22,417.79
Department of Health,Leicestershire Partnership NHS Trust,16/09/22,Gas,"Evington Centre (P6, LPT)",TOTAL GAS & POWER LTD,277780475/22,1051.60
Department of Health,Leicestershire Partnership NHS Trust,16/09/22,Gas,"Farm Lodge (P34, LPT)",TOTAL GAS & POWER LTD,277780475/22,104.93
Department of Health,Leicestershire Partnership NHS Trust,16/09/22,Gas,"Feilding Palmer Hospital (Lutterworth) (P131, LPT)",TOTAL GAS & POWER LTD,277780475/22,1769.51
Department of Health,Leicestershire Partnership NHS Trust,16/09/22,Gas,"Frith Cottages 3 & 4 (P36, LPT)",TOTAL GAS & POWER LTD,277780475/22,100.48
Department of Health,Leicestershire Partnership NHS Trust,16/09/22,Gas,HIS,TOTAL GAS & POWER LTD,277780475/22,56.94
Department of Health,Leicestershire Partnership NHS Trust,16/09/22,Gas,"Hawthorne Centre - Coalville (P14, LPT)",TOTAL GAS & POWER LTD,277780475/22,302.63
Department of Health,Leicestershire Partnership NHS Trust,16/09/22,Gas,"Hinckley and Bosworth Community Hospital (Sunnyside) (P133, LPT)",TOTAL GAS & POWER LTD,277780475/22,5135.29
Department of Health,Leicestershire Partnership NHS Trust,16/09/22,Gas,"Hynca Lodge (P33, LPT)",TOTAL GAS & POWER LTD,277780475/22,157.68
Department of Health,Leicestershire Partnership NHS Trust,16/09/22,Gas,"LGH - Gwendolen House (P4, LPT)",TOTAL GAS & POWER LTD,277780475/22,1322.69
Department of Health,Leicestershire Partnership NHS Trust,16/09/22,Gas,"Loughborough Hospital (P136, LPT)",TOTAL GAS & POWER LTD,277780475/22,11645.06
Department of Health,Leicestershire Partnership NHS Trust,16/09/22,Gas,Mawson House (LPT),TOTAL GAS & POWER LTD,277780475/22,323.19
Department of Health,Leicestershire Partnership NHS Trust,16/09/22,Gas,"Mett Centre (P49, LPT)",TOTAL GAS & POWER LTD,277780475/22,282.91
Department of Health,Leicestershire Partnership NHS Trust,16/09/22,Gas,"Narborough Health Centre (P117, LPT)",TOTAL GAS & POWER LTD,277780475/22,309.64
Department of Health,Leicestershire Partnership NHS Trust,16/09/22,Gas,"Neville Centre - LGH (was DSC) (P147, LPT)",TOTAL GAS & POWER LTD,277780475/22,692.24
Department of Health,Leicestershire Partnership NHS Trust,16/09/22,Gas,"OSL House (P54, LPT)",TOTAL GAS & POWER LTD,277780475/22,322.37
Department of Health,Leicestershire Partnership NHS Trust,16/09/22,Gas,"Orchard Resource Centre (P15, LPT)",TOTAL GAS & POWER LTD,277780475/22,320.39
Department of Health,Leicestershire Partnership NHS Trust,16/09/22,Gas,"Rutland Memorial Hospital (P134, LPT)",TOTAL GAS & POWER LTD,277780475/22,1298.36
Department of Health,Leicestershire Partnership NHS Trust,16/09/22,Gas,"Shepshed Health Centre (P123, LPT)",TOTAL GAS & POWER LTD,277780475/22,400.54
Department of Health,Leicestershire Partnership NHS Trust,16/09/22,Gas,"Springfield Road Health Centre (P92, LPT)",TOTAL GAS & POWER LTD,277780475/22,287.76
Department of Health,Leicestershire Partnership NHS Trust,16/09/22,Gas,"Stewart House (P61, LPT)",TOTAL GAS & POWER LTD,277780475/22,2439.48
Department of Health,Leicestershire Partnership NHS Trust,16/09/22,Gas,"Swithland House - London Road 352 (P44, LPT)",TOTAL GAS & POWER LTD,277780475/22,728.41
Department of Health,Leicestershire Partnership NHS Trust,16/09/22,Gas,"The Agnes Unit (AKA Assessment and Treatment Centre) (P85, LPT)",TOTAL GAS & POWER LTD,277780475/22,3437.67
Department of Health,Leicestershire Partnership NHS Trust,16/09/22,Gas,The Beacon,TOTAL GAS & POWER LTD,277780475/22,1566.17
Department of Health,Leicestershire Partnership NHS Trust,16/09/22,Gas,"The Cedars (P19, LPT)",TOTAL GAS & POWER LTD,277780475/22,151.03
Department of Health,Leicestershire Partnership NHS Trust,16/09/22,Gas,"The Grange 1 (P4, LPT)",TOTAL GAS & POWER LTD,277780475/22,201.70
Department of Health,Leicestershire Partnership NHS Trust,16/09/22,Gas,"The Grange 2 (P41, LPT)",TOTAL GAS & POWER LTD,277780475/22,102.56
Department of Health,Leicestershire Partnership NHS Trust,16/09/22,Gas,"The Willows - Cordelia Close (P22, LPT)",TOTAL GAS & POWER LTD,277780475/22,2437.88
Department of Health,Leicestershire Partnership NHS Trust,16/09/22,Gas,"Valentine Centre (P3, LPT)",TOTAL GAS & POWER LTD,277780475/22,1704.19
Department of Health,Leicestershire Partnership NHS Trust,16/09/22,Gas,"Westcotes Group -Westcotes House (P78, LPT)",TOTAL GAS & POWER LTD,277780475/22,1027.76
Department of Health,Leicestershire Partnership NHS Trust,16/09/22,Gas,"Winstanley Drive Health Centre (P8, LPT)",TOTAL GAS & POWER LTD,277780475/22,374.54
Department of Health,Leicestershire Partnership NHS Trust,20/09/22,External Consultancy Fees,HIS Programme & Change,EAST MIDLANDS CARE,IG/DSPTSUPPORTMAR23,25000.00
Department of Health,Leicestershire Partnership NHS Trust,20/09/22,Photocopying,Estates & Facilities Central,LEXMARK INTERNATIONAL LTD,900650303984,41258.00
Department of Health,Leicestershire Partnership NHS Trust,20/09/22,NURSE - BAND 2 - AGENCY,Beechwood Ward,HCL NURSING,HNSI0001139,4768.58
Department of Health,Leicestershire Partnership NHS Trust,20/09/22,NURSE - BAND 5 - AGENCY,Beechwood Ward,HCL NURSING,HNSI0001139,3563.58
Department of Health,Leicestershire Partnership NHS Trust,20/09/22,NURSE - BAND 2 - AGENCY,CHS Surge Ward,HCL NURSING,HNSI0001139,4129.57
Department of Health,Leicestershire Partnership NHS Trust,20/09/22,NURSE - BAND 5 - AGENCY,CHS Surge Ward,HCL NURSING,HNSI0001139,4132.65
Department of Health,Leicestershire Partnership NHS Trust,20/09/22,NURSE - BAND 5 - AGENCY,City Planned Care - East,HCL NURSING,HNSI0001139,12812.11
Department of Health,Leicestershire Partnership NHS Trust,20/09/22,NURSE - BAND 5 - AGENCY,City Planned Care - West,HCL NURSING,HNSI0001139,16151.79
Department of Health,Leicestershire Partnership NHS Trust,20/09/22,NURSE - BAND 2 - AGENCY,Clarendon Ward,HCL NURSING,HNSI0001139,3840.53
Department of Health,Leicestershire Partnership NHS Trust,20/09/22,NURSE - BAND 5 - AGENCY,Clarendon Ward,HCL NURSING,HNSI0001139,1540.62
Department of Health,Leicestershire Partnership NHS Trust,20/09/22,NURSE - BAND 2 - AGENCY,Coalville Snibston Ward,HCL NURSING,HNSI0001139,3223.30
Department of Health,Leicestershire Partnership NHS Trust,20/09/22,NURSE - BAND 5 - AGENCY,Coalville Snibston Ward,HCL NURSING,HNSI0001139,1177.20
Department of Health,Leicestershire Partnership NHS Trust,20/09/22,NURSE - BAND 2 - AGENCY,Coalville Ward 2,HCL NURSING,HNSI0001139,5324.53
Department of Health,Leicestershire Partnership NHS Trust,20/09/22,NURSE - BAND 5 - AGENCY,Coalville Ward 2,HCL NURSING,HNSI0001139,2538.04
Department of Health,Leicestershire Partnership NHS Trust,20/09/22,NURSE - BAND 2 - AGENCY,Dalgliesh Ward,HCL NURSING,HNSI0001139,4163.15
Department of Health,Leicestershire Partnership NHS Trust,20/09/22,NURSE - BAND 5 - AGENCY,Dalgliesh Ward,HCL NURSING,HNSI0001139,2173.59
Department of Health,Leicestershire Partnership NHS Trust,20/09/22,NURSE - BAND 5 - AGENCY,"East Planned Care - Oadby,Wigston & Harborough",HCL NURSING,HNSI0001139,89.11
Department of Health,Leicestershire Partnership NHS Trust,20/09/22,NURSE - BAND 2 - AGENCY,H&B Comm Hosp East Ward,HCL NURSING,HNSI0001139,4775.33
Department of Health,Leicestershire Partnership NHS Trust,20/09/22,NURSE - BAND 5 - AGENCY,H&B Comm Hosp East Ward,HCL NURSING,HNSI0001139,6285.68
Department of Health,Leicestershire Partnership NHS Trust,20/09/22,NURSE - BAND 2 - AGENCY,H&B Comm Hosp North Ward,HCL NURSING,HNSI0001139,2636.39
Department of Health,Leicestershire Partnership NHS Trust,20/09/22,NURSE - BAND 5 - AGENCY,H&B Comm Hosp North Ward,HCL NURSING,HNSI0001139,1456.65
Department of Health,Leicestershire Partnership NHS Trust,20/09/22,NURSE - BAND 2 - AGENCY,Lough Swithland Ward,HCL NURSING,HNSI0001139,3149.40
Department of Health,Leicestershire Partnership NHS Trust,20/09/22,NURSE - BAND 5 - AGENCY,Lough Swithland Ward,HCL NURSING,HNSI0001139,4759.15
Department of Health,Leicestershire Partnership NHS Trust,20/09/22,NURSE - BAND 2 - AGENCY,Rutland Ward Nursing,HCL NURSING,HNSI0001139,2197.51
Department of Health,Leicestershire Partnership NHS Trust,20/09/22,NURSE - BAND 5 - AGENCY,Rutland Ward Nursing,HCL NURSING,HNSI0001139,3845.66
Department of Health,Leicestershire Partnership NHS Trust,20/09/22,NURSE - BAND 2 - AGENCY,St Lukes Stroke Ward,HCL NURSING,HNSI0001139,5339.15
Department of Health,Leicestershire Partnership NHS Trust,20/09/22,NURSE - BAND 2 - AGENCY,St Lukes Ward 3,HCL NURSING,HNSI0001139,2657.74
Department of Health,Leicestershire Partnership NHS Trust,20/09/22,NURSE - BAND 5 - AGENCY,St Lukes Ward 3,HCL NURSING,HNSI0001139,1859.55
Department of Health,Leicestershire Partnership NHS Trust,20/09/22,NURSE - BAND 5 - AGENCY,Wakerley Ward,HCL NURSING,HNSI0001139,1434.58
Department of Health,Leicestershire Partnership NHS Trust,20/09/22,Med GP Trainees,Medical Trainees,ST.HELENS & KNOWSLEY NHS TRUST,16816420,75000.00
Department of Health,Leicestershire Partnership NHS Trust,20/09/22,Crs_NHS_LT1y -Resus Inventory Supplied.,Balance Sheet Collection,SUPPLY CHAIN CO LTD,1123128733,30856.33
Department of Health,Leicestershire Partnership NHS Trust,20/09/22,Landline Telephone Rental / Calls,"Beaumont Leys Health Centre (P94, LPT)",VIRGIN MEDIA BUSINESS,853083001/004/0922,326.24
Department of Health,Leicestershire Partnership NHS Trust,20/09/22,Landline Telephone Rental / Calls,"Bennion Centre (including Forest Grange Day Unit) (P8, LPT)",VIRGIN MEDIA BUSINESS,853083001/004/0922,7.74
Department of Health,Leicestershire Partnership NHS Trust,20/09/22,Landline Telephone Rental / Calls,"Bradgate Unit (including Glenvale day Unit) (P7, LPT)",VIRGIN MEDIA BUSINESS,853083001/004/0922,9232.97
Department of Health,Leicestershire Partnership NHS Trust,20/09/22,Landline Telephone Rental / Calls,Braunstone Health and Social Care Centre (Part) (PROPCO),VIRGIN MEDIA BUSINESS,853083001/004/0922,1175.48
Department of Health,Leicestershire Partnership NHS Trust,20/09/22,Landline Telephone Rental / Calls,Bridge Park Plaza - First Floor (LPT),VIRGIN MEDIA BUSINESS,853083001/004/0922,3706.15
Department of Health,Leicestershire Partnership NHS Trust,20/09/22,Landline Telephone Rental / Calls,"Coalville Community Hospital (P138, LPT)",VIRGIN MEDIA BUSINESS,853083001/004/0922,1452.47
Department of Health,Leicestershire Partnership NHS Trust,20/09/22,Landline Telephone Rental / Calls,"Coalville Health Centre (P121, LPT)",VIRGIN MEDIA BUSINESS,853083001/004/0922,165.25
Department of Health,Leicestershire Partnership NHS Trust,20/09/22,Landline Telephone Rental / Calls,County Hall,VIRGIN MEDIA BUSINESS,853083001/004/0922,1540.39
Department of Health,Leicestershire Partnership NHS Trust,20/09/22,Landline Telephone Rental / Calls,Estates & Facilities Central,VIRGIN MEDIA BUSINESS,853083001/004/0922,6.34
Department of Health,Leicestershire Partnership NHS Trust,20/09/22,Landline Telephone Rental / Calls,"Evington Centre (P6, LPT)",VIRGIN MEDIA BUSINESS,853083001/004/0922,1641.46
Department of Health,Leicestershire Partnership NHS Trust,20/09/22,Landline Telephone Rental / Calls,HIS,VIRGIN MEDIA BUSINESS,853083001/004/0922,2852.35
Department of Health,Leicestershire Partnership NHS Trust,20/09/22,Landline Telephone Rental / Calls,"Hawthorne Centre - Coalville (P14, LPT)",VIRGIN MEDIA BUSINESS,853083001/004/0922,537.84
Department of Health,Leicestershire Partnership NHS Trust,20/09/22,Landline Telephone Rental / Calls,"Hinckley and Bosworth Community Hospital (Sunnyside) (P133, LPT)",VIRGIN MEDIA BUSINESS,853083001/004/0922,977.87
Department of Health,Leicestershire Partnership NHS Trust,20/09/22,Landline Telephone Rental / Calls,Hood Park Leisure Centre Clinic,VIRGIN MEDIA BUSINESS,853083001/004/0922,23.22
Department of Health,Leicestershire Partnership NHS Trust,20/09/22,Landline Telephone Rental / Calls,"Hynca Lodge (P33, LPT)",VIRGIN MEDIA BUSINESS,853083001/004/0922,375.07
Department of Health,Leicestershire Partnership NHS Trust,20/09/22,Landline Telephone Rental / Calls,"Legion House, Ashby",VIRGIN MEDIA BUSINESS,853083001/004/0922,53.40
Department of Health,Leicestershire Partnership NHS Trust,20/09/22,Landline Telephone Rental / Calls,"Loughborough Hospital (P136, LPT)",VIRGIN MEDIA BUSINESS,853083001/004/0922,4357.07
Department of Health,Leicestershire Partnership NHS Trust,20/09/22,Landline Telephone Rental / Calls,Mawson House (LPT),VIRGIN MEDIA BUSINESS,853083001/004/0922,441.12
Department of Health,Leicestershire Partnership NHS Trust,20/09/22,Landline Telephone Rental / Calls,Merlyn Vaz Centre (CHP),VIRGIN MEDIA BUSINESS,853083001/004/0922,1320.65
Department of Health,Leicestershire Partnership NHS Trust,20/09/22,Landline Telephone Rental / Calls,"Mett Centre (P49, LPT)",VIRGIN MEDIA BUSINESS,853083001/004/0922,93.46
Department of Health,Leicestershire Partnership NHS Trust,20/09/22,Landline Telephone Rental / Calls,NSPCC Training Cente,VIRGIN MEDIA BUSINESS,853083001/004/0922,159.96
Department of Health,Leicestershire Partnership NHS Trust,20/09/22,Landline Telephone Rental / Calls,New Parks Health Centre (PROPCO),VIRGIN MEDIA BUSINESS,853083001/004/0922,1575.95
Department of Health,Leicestershire Partnership NHS Trust,20/09/22,Landline Telephone Rental / Calls,"OSL House (P54, LPT)",VIRGIN MEDIA BUSINESS,853083001/004/0922,970.43
Department of Health,Leicestershire Partnership NHS Trust,20/09/22,Landline Telephone Rental / Calls,"Orchard Resource Centre (P15, LPT)",VIRGIN MEDIA BUSINESS,853083001/004/0922,629.81
Department of Health,Leicestershire Partnership NHS Trust,20/09/22,Landline Telephone Rental / Calls,Pasley Road Health Centre (PROPCO),VIRGIN MEDIA BUSINESS,853083001/004/0922,153.96
Department of Health,Leicestershire Partnership NHS Trust,20/09/22,Landline Telephone Rental / Calls,"Prince Philip House (P96, LPT)",VIRGIN MEDIA BUSINESS,853083001/004/0922,1469.00
Department of Health,Leicestershire Partnership NHS Trust,20/09/22,Landline Telephone Rental / Calls,Rushey Mead Health Centre (PROPCO),VIRGIN MEDIA BUSINESS,853083001/004/0922,75.38
Department of Health,Leicestershire Partnership NHS Trust,20/09/22,Landline Telephone Rental / Calls,"Shepshed Health Centre (P123, LPT)",VIRGIN MEDIA BUSINESS,853083001/004/0922,7.74
Department of Health,Leicestershire Partnership NHS Trust,20/09/22,Landline Telephone Rental / Calls,"Springfield Road Health Centre (P92, LPT)",VIRGIN MEDIA BUSINESS,853083001/004/0922,331.56
Department of Health,Leicestershire Partnership NHS Trust,20/09/22,Landline Telephone Rental / Calls,"St Peters Health Center (Part 1st and 2nd floors) (P66, LPT)",VIRGIN MEDIA BUSINESS,853083001/004/0922,1777.21
Department of Health,Leicestershire Partnership NHS Trust,20/09/22,Landline Telephone Rental / Calls,"Swithland House - London Road 352 (P44, LPT)",VIRGIN MEDIA BUSINESS,853083001/004/0922,271.79
Department of Health,Leicestershire Partnership NHS Trust,20/09/22,Landline Telephone Rental / Calls,"The Cedars (P19, LPT)",VIRGIN MEDIA BUSINESS,853083001/004/0922,764.04
Department of Health,Leicestershire Partnership NHS Trust,20/09/22,Landline Telephone Rental / Calls,"The Willows - Cordelia Close (P22, LPT)",VIRGIN MEDIA BUSINESS,853083001/004/0922,551.02
Department of Health,Leicestershire Partnership NHS Trust,20/09/22,Landline Telephone Rental / Calls,"Valentine Centre (P3, LPT)",VIRGIN MEDIA BUSINESS,853083001/004/0922,1779.23
Department of Health,Leicestershire Partnership NHS Trust,20/09/22,Landline Telephone Rental / Calls,Warren Park Way 25 (PROPCO),VIRGIN MEDIA BUSINESS,853083001/004/0922,763.14
Department of Health,Leicestershire Partnership NHS Trust,20/09/22,Landline Telephone Rental / Calls,"Westcotes Group -Westcotes House (P78, LPT)",VIRGIN MEDIA BUSINESS,853083001/004/0922,1451.50
Department of Health,Leicestershire Partnership NHS Trust,20/09/22,Landline Telephone Rental / Calls,"Winstanley Drive Health Centre (P8, LPT)",VIRGIN MEDIA BUSINESS,853083001/004/0922,451.16
Department of Health,Leicestershire Partnership NHS Trust,20/09/22,NURSE - BAND 2 - AGENCY,Beechwood Ward,HCL NURSING,HNSI0001135,7690.00
Department of Health,Leicestershire Partnership NHS Trust,20/09/22,NURSE - BAND 5 - AGENCY,Beechwood Ward,HCL NURSING,HNSI0001135,3994.57
Department of Health,Leicestershire Partnership NHS Trust,20/09/22,NURSE - BAND 2 - AGENCY,CHS Surge Ward,HCL NURSING,HNSI0001135,2563.52
Department of Health,Leicestershire Partnership NHS Trust,20/09/22,NURSE - BAND 5 - AGENCY,CHS Surge Ward,HCL NURSING,HNSI0001135,332.86
Department of Health,Leicestershire Partnership NHS Trust,20/09/22,NURSE - BAND 5 - AGENCY,City Planned Care - East,HCL NURSING,HNSI0001135,14670.59
Department of Health,Leicestershire Partnership NHS Trust,20/09/22,NURSE - BAND 5 - AGENCY,City Planned Care - West,HCL NURSING,HNSI0001135,10580.00
Department of Health,Leicestershire Partnership NHS Trust,20/09/22,NURSE - BAND 2 - AGENCY,Clarendon Ward,HCL NURSING,HNSI0001135,4394.16
Department of Health,Leicestershire Partnership NHS Trust,20/09/22,NURSE - BAND 5 - AGENCY,Clarendon Ward,HCL NURSING,HNSI0001135,1446.82
Department of Health,Leicestershire Partnership NHS Trust,20/09/22,NURSE - BAND 2 - AGENCY,Coalville Snibston Ward,HCL NURSING,HNSI0001135,3095.35
Department of Health,Leicestershire Partnership NHS Trust,20/09/22,NURSE - BAND 5 - AGENCY,Coalville Snibston Ward,HCL NURSING,HNSI0001135,520.04
Department of Health,Leicestershire Partnership NHS Trust,20/09/22,NURSE - BAND 2 - AGENCY,Coalville Ward 2,HCL NURSING,HNSI0001135,1494.64
Department of Health,Leicestershire Partnership NHS Trust,20/09/22,NURSE - BAND 5 - AGENCY,Coalville Ward 2,HCL NURSING,HNSI0001135,389.68
Department of Health,Leicestershire Partnership NHS Trust,20/09/22,NURSE - BAND 2 - AGENCY,Dalgliesh Ward,HCL NURSING,HNSI0001135,4240.63
Department of Health,Leicestershire Partnership NHS Trust,20/09/22,NURSE - BAND 5 - AGENCY,Dalgliesh Ward,HCL NURSING,HNSI0001135,3318.47
Department of Health,Leicestershire Partnership NHS Trust,20/09/22,NURSE - BAND 5 - AGENCY,"East Planned Care - Oadby,Wigston & Harborough",HCL NURSING,HNSI0001135,1514.87
Department of Health,Leicestershire Partnership NHS Trust,20/09/22,NURSE - BAND 2 - AGENCY,H&B Comm Hosp East Ward,HCL NURSING,HNSI0001135,1167.79
Department of Health,Leicestershire Partnership NHS Trust,20/09/22,NURSE - BAND 5 - AGENCY,H&B Comm Hosp East Ward,HCL NURSING,HNSI0001135,5598.53
Department of Health,Leicestershire Partnership NHS Trust,20/09/22,NURSE - BAND 2 - AGENCY,H&B Comm Hosp North Ward,HCL NURSING,HNSI0001135,2121.89
Department of Health,Leicestershire Partnership NHS Trust,20/09/22,NURSE - BAND 5 - AGENCY,H&B Comm Hosp North Ward,HCL NURSING,HNSI0001135,1917.60
Department of Health,Leicestershire Partnership NHS Trust,20/09/22,NURSE - BAND 2 - AGENCY,Lough Swithland Ward,HCL NURSING,HNSI0001135,2455.36
Department of Health,Leicestershire Partnership NHS Trust,20/09/22,NURSE - BAND 5 - AGENCY,Lough Swithland Ward,HCL NURSING,HNSI0001135,3972.04
Department of Health,Leicestershire Partnership NHS Trust,20/09/22,NURSE - BAND 2 - AGENCY,Rutland Ward Nursing,HCL NURSING,HNSI0001135,2459.23
Department of Health,Leicestershire Partnership NHS Trust,20/09/22,NURSE - BAND 5 - AGENCY,Rutland Ward Nursing,HCL NURSING,HNSI0001135,3562.24
Department of Health,Leicestershire Partnership NHS Trust,20/09/22,NURSE - BAND 2 - AGENCY,St Lukes Stroke Ward,HCL NURSING,HNSI0001135,3252.99
Department of Health,Leicestershire Partnership NHS Trust,20/09/22,NURSE - BAND 5 - AGENCY,St Lukes Stroke Ward,HCL NURSING,HNSI0001135,863.55
Department of Health,Leicestershire Partnership NHS Trust,20/09/22,NURSE - BAND 2 - AGENCY,St Lukes Ward 3,HCL NURSING,HNSI0001135,4120.17
Department of Health,Leicestershire Partnership NHS Trust,20/09/22,NURSE - BAND 5 - AGENCY,Wakerley Ward,HCL NURSING,HNSI0001135,1245.33
Department of Health,Leicestershire Partnership NHS Trust,22/09/22,Telephone equipment,"Evington Centre (P6, LPT)",VIRGIN MEDIA BUSINESS,60049126,14964.87
Department of Health,Leicestershire Partnership NHS Trust,22/09/22,Telephone equipment,"Frith Cottages 3 & 4 (P36, LPT)",VIRGIN MEDIA BUSINESS,60049126,14964.88
Department of Health,Leicestershire Partnership NHS Trust,26/09/22,Rent,County Hall,LEIC COUNTY COUNCIL,6292938,34488.50
Department of Health,Leicestershire Partnership NHS Trust,26/09/22,NURSE - BAND 2 - AGENCY,Beechwood Ward,HCL NURSING,HNSI0001143,4203.70
Department of Health,Leicestershire Partnership NHS Trust,26/09/22,NURSE - BAND 5 - AGENCY,Beechwood Ward,HCL NURSING,HNSI0001143,3423.78
Department of Health,Leicestershire Partnership NHS Trust,26/09/22,NURSE - BAND 2 - AGENCY,CHS Surge Ward,HCL NURSING,HNSI0001143,4877.88
Department of Health,Leicestershire Partnership NHS Trust,26/09/22,NURSE - BAND 5 - AGENCY,CHS Surge Ward,HCL NURSING,HNSI0001143,786.66
Department of Health,Leicestershire Partnership NHS Trust,26/09/22,NURSE - BAND 5 - AGENCY,City Planned Care - East,HCL NURSING,HNSI0001143,11602.89
Department of Health,Leicestershire Partnership NHS Trust,26/09/22,NURSE - BAND 5 - AGENCY,City Planned Care - West,HCL NURSING,HNSI0001143,6011.48
Department of Health,Leicestershire Partnership NHS Trust,26/09/22,NURSE - BAND 2 - AGENCY,Clarendon Ward,HCL NURSING,HNSI0001143,2841.82
Department of Health,Leicestershire Partnership NHS Trust,26/09/22,NURSE - BAND 5 - AGENCY,Clarendon Ward,HCL NURSING,HNSI0001143,4245.67
Department of Health,Leicestershire Partnership NHS Trust,26/09/22,NURSE - BAND 2 - AGENCY,Coalville Snibston Ward,HCL NURSING,HNSI0001143,2433.00
Department of Health,Leicestershire Partnership NHS Trust,26/09/22,NURSE - BAND 5 - AGENCY,Coalville Snibston Ward,HCL NURSING,HNSI0001143,1744.10
Department of Health,Leicestershire Partnership NHS Trust,26/09/22,NURSE - BAND 2 - AGENCY,Coalville Ward 2,HCL NURSING,HNSI0001143,2197.51
Department of Health,Leicestershire Partnership NHS Trust,26/09/22,NURSE - BAND 5 - AGENCY,Coalville Ward 2,HCL NURSING,HNSI0001143,2598.82
Department of Health,Leicestershire Partnership NHS Trust,26/09/22,NURSE - BAND 2 - AGENCY,Dalgliesh Ward,HCL NURSING,HNSI0001143,4773.49
Department of Health,Leicestershire Partnership NHS Trust,26/09/22,NURSE - BAND 5 - AGENCY,Dalgliesh Ward,HCL NURSING,HNSI0001143,3281.87
Department of Health,Leicestershire Partnership NHS Trust,26/09/22,NURSE - BAND 5 - AGENCY,"East Planned Care - Oadby,Wigston & Harborough",HCL NURSING,HNSI0001143,983.50
Department of Health,Leicestershire Partnership NHS Trust,26/09/22,NURSE - BAND 2 - AGENCY,H&B Comm Hosp East Ward,HCL NURSING,HNSI0001143,3302.64
Department of Health,Leicestershire Partnership NHS Trust,26/09/22,NURSE - BAND 5 - AGENCY,H&B Comm Hosp East Ward,HCL NURSING,HNSI0001143,5663.46
Department of Health,Leicestershire Partnership NHS Trust,26/09/22,NURSE - BAND 2 - AGENCY,H&B Comm Hosp North Ward,HCL NURSING,HNSI0001143,2964.95
Department of Health,Leicestershire Partnership NHS Trust,26/09/22,NURSE - BAND 5 - AGENCY,H&B Comm Hosp North Ward,HCL NURSING,HNSI0001143,4724.58
Department of Health,Leicestershire Partnership NHS Trust,26/09/22,NURSE - BAND 2 - AGENCY,Lough Swithland Ward,HCL NURSING,HNSI0001143,2741.97
Department of Health,Leicestershire Partnership NHS Trust,26/09/22,NURSE - BAND 5 - AGENCY,Lough Swithland Ward,HCL NURSING,HNSI0001143,2314.60
Department of Health,Leicestershire Partnership NHS Trust,26/09/22,NURSE - BAND 2 - AGENCY,Rutland Ward Nursing,HCL NURSING,HNSI0001143,463.62
Department of Health,Leicestershire Partnership NHS Trust,26/09/22,NURSE - BAND 5 - AGENCY,Rutland Ward Nursing,HCL NURSING,HNSI0001143,2421.36
Department of Health,Leicestershire Partnership NHS Trust,26/09/22,NURSE - BAND 2 - AGENCY,St Lukes Stroke Ward,HCL NURSING,HNSI0001143,6870.62
Department of Health,Leicestershire Partnership NHS Trust,26/09/22,NURSE - BAND 2 - AGENCY,St Lukes Ward 3,HCL NURSING,HNSI0001143,4070.49
Department of Health,Leicestershire Partnership NHS Trust,26/09/22,NURSE - BAND 5 - AGENCY,St Lukes Ward 3,HCL NURSING,HNSI0001143,930.65
Department of Health,Leicestershire Partnership NHS Trust,26/09/22,Crs_NHS_LT1y -Resus Inventory Supplied.,Balance Sheet Collection,SUPPLY CHAIN CO LTD,1123134527,25209.35
Department of Health,Leicestershire Partnership NHS Trust,26/09/22,Nurse - Band 6 -Agency,AMH - Central Access Point,HCL WORKFORCE SOLUTIONS,HWSI0001368,7996.16
Department of Health,Leicestershire Partnership NHS Trust,26/09/22,Nurse - Band 6 -Agency,Adult County Charnwood CMHT - Loughborough Base,HCL WORKFORCE SOLUTIONS,HWSI0001368,2669.25
Department of Health,Leicestershire Partnership NHS Trust,26/09/22,Nurse - Band 6 -Agency,Crisis Resolution,HCL WORKFORCE SOLUTIONS,HWSI0001368,12812.44
Department of Health,Leicestershire Partnership NHS Trust,26/09/22,Nurse - Band 6 -Agency,AMH - Central Access Point,HCL NURSING,HNSI0001142,2447.36
Department of Health,Leicestershire Partnership NHS Trust,26/09/22,NURSE - BAND 2 - AGENCY,Agnes Unit,HCL NURSING,HNSI0001142,18380.10
Department of Health,Leicestershire Partnership NHS Trust,26/09/22,NURSE - BAND 5 - AGENCY,Agnes Unit,HCL NURSING,HNSI0001142,20493.30
Department of Health,Leicestershire Partnership NHS Trust,26/09/22,NURSE - BAND 2 - AGENCY,Ashby Ward (Bradgate Unit),HCL NURSING,HNSI0001142,7260.45
Department of Health,Leicestershire Partnership NHS Trust,26/09/22,NURSE - BAND 5 - AGENCY,Ashby Ward (Bradgate Unit),HCL NURSING,HNSI0001142,11163.65
Department of Health,Leicestershire Partnership NHS Trust,26/09/22,NURSE - BAND 2 - AGENCY,Beaumont Ward - Bradgate Unit,HCL NURSING,HNSI0001142,1971.74
Department of Health,Leicestershire Partnership NHS Trust,26/09/22,NURSE - BAND 5 - AGENCY,Beaumont Ward - Bradgate Unit,HCL NURSING,HNSI0001142,11446.90
Department of Health,Leicestershire Partnership NHS Trust,26/09/22,NURSE - BAND 2 - AGENCY,Belvoir Psychiatric Intensive Care Unit,HCL NURSING,HNSI0001142,5016.68
Department of Health,Leicestershire Partnership NHS Trust,26/09/22,NURSE - BAND 5 - AGENCY,Belvoir Psychiatric Intensive Care Unit,HCL NURSING,HNSI0001142,6037.71
Department of Health,Leicestershire Partnership NHS Trust,26/09/22,NURSE - BAND 2 - AGENCY,Bosworth Ward - Bradgate Unit,HCL NURSING,HNSI0001142,1681.57
Department of Health,Leicestershire Partnership NHS Trust,26/09/22,NURSE - BAND 5 - AGENCY,Bosworth Ward - Bradgate Unit,HCL NURSING,HNSI0001142,5039.63
Department of Health,Leicestershire Partnership NHS Trust,26/09/22,NURSE - BAND 2 - AGENCY,Cedar (Willows),HCL NURSING,HNSI0001142,2253.50
Department of Health,Leicestershire Partnership NHS Trust,26/09/22,NURSE - BAND 5 - AGENCY,Cedar (Willows),HCL NURSING,HNSI0001142,974.25
Department of Health,Leicestershire Partnership NHS Trust,26/09/22,Nurse - Band 6 -Agency,City West CMHT MHSOP,HCL NURSING,HNSI0001142,1056.00
Department of Health,Leicestershire Partnership NHS Trust,26/09/22,NURSE - BAND 2 - AGENCY,Coleman Ward,HCL NURSING,HNSI0001142,9149.21
Department of Health,Leicestershire Partnership NHS Trust,26/09/22,NURSE - BAND 5 - AGENCY,Coleman Ward,HCL NURSING,HNSI0001142,4061.77
Department of Health,Leicestershire Partnership NHS Trust,26/09/22,NURSE - BAND 2 - AGENCY,Griffin Ward (HPC),HCL NURSING,HNSI0001142,2681.69
Department of Health,Leicestershire Partnership NHS Trust,26/09/22,NURSE - BAND 5 - AGENCY,Griffin Ward (HPC),HCL NURSING,HNSI0001142,3481.68
Department of Health,Leicestershire Partnership NHS Trust,26/09/22,NURSE - BAND 2 - AGENCY,Gwendolen Ward,HCL NURSING,HNSI0001142,6506.40
Department of Health,Leicestershire Partnership NHS Trust,26/09/22,NURSE - BAND 5 - AGENCY,Gwendolen Ward,HCL NURSING,HNSI0001142,1983.25
Department of Health,Leicestershire Partnership NHS Trust,26/09/22,NURSE - BAND 2 - AGENCY,Heather Ward,HCL NURSING,HNSI0001142,1078.74
Department of Health,Leicestershire Partnership NHS Trust,26/09/22,NURSE - BAND 5 - AGENCY,Heather Ward,HCL NURSING,HNSI0001142,3733.54
Department of Health,Leicestershire Partnership NHS Trust,26/09/22,NURSE - BAND 2 - AGENCY,Kirby Ward,HCL NURSING,HNSI0001142,4776.41
Department of Health,Leicestershire Partnership NHS Trust,26/09/22,NURSE - BAND 5 - AGENCY,Kirby Ward,HCL NURSING,HNSI0001142,588.44
Department of Health,Leicestershire Partnership NHS Trust,26/09/22,NURSE - BAND 2 - AGENCY,Maple Ward,HCL NURSING,HNSI0001142,2666.80
Department of Health,Leicestershire Partnership NHS Trust,26/09/22,NURSE - BAND 5 - AGENCY,Maple Ward,HCL NURSING,HNSI0001142,1040.08
Department of Health,Leicestershire Partnership NHS Trust,26/09/22,Nurse - Band 6 -Agency,Mental Health Liaison Team,HCL NURSING,HNSI0001142,1790.10
Department of Health,Leicestershire Partnership NHS Trust,26/09/22,NURSE - BAND 2 - AGENCY,Mill Lodge,HCL NURSING,HNSI0001142,3430.56
Department of Health,Leicestershire Partnership NHS Trust,26/09/22,NURSE - BAND 5 - AGENCY,Mill Lodge,HCL NURSING,HNSI0001142,3188.45
Department of Health,Leicestershire Partnership NHS Trust,26/09/22,NURSE - BAND 2 - AGENCY,Phoenix Ward (HPC),HCL NURSING,HNSI0001142,880.91
Department of Health,Leicestershire Partnership NHS Trust,26/09/22,NURSE - BAND 5 - AGENCY,Phoenix Ward (HPC),HCL NURSING,HNSI0001142,3459.31
Department of Health,Leicestershire Partnership NHS Trust,26/09/22,NURSE - BAND 2 - AGENCY,Place Of Safety Assessment Unit,HCL NURSING,HNSI0001142,2382.37
Department of Health,Leicestershire Partnership NHS Trust,26/09/22,NURSE - BAND 5 - AGENCY,Place Of Safety Assessment Unit,HCL NURSING,HNSI0001142,3647.16
Department of Health,Leicestershire Partnership NHS Trust,26/09/22,NURSE - BAND 2 - AGENCY,Stewart House,HCL NURSING,HNSI0001142,543.71
Department of Health,Leicestershire Partnership NHS Trust,26/09/22,NURSE - BAND 5 - AGENCY,Stewart House,HCL NURSING,HNSI0001142,958.84
Department of Health,Leicestershire Partnership NHS Trust,26/09/22,NURSE - BAND 2 - AGENCY,Sycamore (Willows),HCL NURSING,HNSI0001142,3740.14
Department of Health,Leicestershire Partnership NHS Trust,26/09/22,NURSE - BAND 5 - AGENCY,Sycamore (Willows),HCL NURSING,HNSI0001142,2858.43
Department of Health,Leicestershire Partnership NHS Trust,26/09/22,NURSE - BAND 2 - AGENCY,Thornton Ward - Bradgate Unit,HCL NURSING,HNSI0001142,2604.84
Department of Health,Leicestershire Partnership NHS Trust,26/09/22,NURSE - BAND 5 - AGENCY,Thornton Ward - Bradgate Unit,HCL NURSING,HNSI0001142,2678.18
Department of Health,Leicestershire Partnership NHS Trust,26/09/22,NURSE - BAND 5 - AGENCY,Watermead Ward (Bradgate Unit),HCL NURSING,HNSI0001142,2806.03
Department of Health,Leicestershire Partnership NHS Trust,26/09/22,NURSE - BAND 2 - AGENCY,Welford Ward,HCL NURSING,HNSI0001142,4450.56
Department of Health,Leicestershire Partnership NHS Trust,26/09/22,NURSE - BAND 5 - AGENCY,Welford Ward,HCL NURSING,HNSI0001142,2203.08
Department of Health,Leicestershire Partnership NHS Trust,26/09/22,NURSE - BAND 2 - AGENCY,CAMHS ED Team,HCL NURSING,HNSI0001136,1286.25
Department of Health,Leicestershire Partnership NHS Trust,26/09/22,NURSE - BAND 5 - AGENCY,CAMHS ED Team,HCL NURSING,HNSI0001136,908.65
Department of Health,Leicestershire Partnership NHS Trust,26/09/22,Nurse - Band 6 -Agency,CAMHS ED Team,HCL NURSING,HNSI0001136,442.18
Department of Health,Leicestershire Partnership NHS Trust,26/09/22,NURSE - BAND 2 - AGENCY,CAMHS Inpatient Service,HCL NURSING,HNSI0001136,16144.52
Department of Health,Leicestershire Partnership NHS Trust,26/09/22,NURSE - BAND 5 - AGENCY,CAMHS Inpatient Service,HCL NURSING,HNSI0001136,8157.50
Department of Health,Leicestershire Partnership NHS Trust,26/09/22,Nurse - Band 6 -Agency,CAMHS Inpatient Service,HCL NURSING,HNSI0001136,725.49
Department of Health,Leicestershire Partnership NHS Trust,26/09/22,NURSE - BAND 2 - AGENCY,CAMHS Waiting List Monies,HCL NURSING,HNSI0001136,2032.50
Department of Health,Leicestershire Partnership NHS Trust,26/09/22,NURSE - BAND 5 - AGENCY,CAMHS Waiting List Monies,HCL NURSING,HNSI0001136,1122.96
Department of Health,Leicestershire Partnership NHS Trust,26/09/22,Nurse - Band 6 -Agency,CAMHS Waiting List Monies,HCL NURSING,HNSI0001136,6243.15
Department of Health,Leicestershire Partnership NHS Trust,26/09/22,NURSE - BAND 2 - AGENCY,Langley Ward ED Inpatient Service,HCL NURSING,HNSI0001136,3001.27
Department of Health,Leicestershire Partnership NHS Trust,26/09/22,NURSE - BAND 5 - AGENCY,Langley Ward ED Inpatient Service,HCL NURSING,HNSI0001136,2618.64
Department of Health,Leicestershire Partnership NHS Trust,26/09/22,Nurse - Band 6 -Agency,Langley Ward ED Inpatient Service,HCL NURSING,HNSI0001136,1.29
Department of Health,Leicestershire Partnership NHS Trust,26/09/22,NURSE - BAND 2 - AGENCY,CAMHS HUB / CAP,HCL WORKFORCE SOLUTIONS,HWSI0001344,2475.24
Department of Health,Leicestershire Partnership NHS Trust,26/09/22,NURSE - BAND 5 - AGENCY,CAMHS HUB / CAP,HCL WORKFORCE SOLUTIONS,HWSI0001344,2260.01
Department of Health,Leicestershire Partnership NHS Trust,26/09/22,Nurse - Band 6 -Agency,CAMHS HUB / CAP,HCL WORKFORCE SOLUTIONS,HWSI0001344,1609.40
Department of Health,Leicestershire Partnership NHS Trust,26/09/22,NURSE - BAND 2 - AGENCY,CAMHS Waiting List Monies,HCL WORKFORCE SOLUTIONS,HWSI0001344,7834.00
Department of Health,Leicestershire Partnership NHS Trust,26/09/22,NURSE - BAND 5 - AGENCY,CAMHS Waiting List Monies,HCL WORKFORCE SOLUTIONS,HWSI0001344,3278.56
Department of Health,Leicestershire Partnership NHS Trust,26/09/22,Nurse - Band 6 -Agency,CAMHS Waiting List Monies,HCL WORKFORCE SOLUTIONS,HWSI0001344,3308.48
Department of Health,Leicestershire Partnership NHS Trust,26/09/22,NURSE - BAND 2 - AGENCY,Crisis Response and Home Treatment,HCL WORKFORCE SOLUTIONS,HWSI0001344,1356.64
Department of Health,Leicestershire Partnership NHS Trust,26/09/22,NURSE - BAND 5 - AGENCY,Crisis Response and Home Treatment,HCL WORKFORCE SOLUTIONS,HWSI0001344,273.05
Department of Health,Leicestershire Partnership NHS Trust,26/09/22,Nurse - Band 6 -Agency,Crisis Response and Home Treatment,HCL WORKFORCE SOLUTIONS,HWSI0001344,415.45
Department of Health,Leicestershire Partnership NHS Trust,26/09/22,Nurse - Band 6 -Agency,AMH - Central Access Point,HCL WORKFORCE SOLUTIONS,HWSI0001356,6658.11
Department of Health,Leicestershire Partnership NHS Trust,26/09/22,Nurse - Band 6 -Agency,Crisis Resolution,HCL WORKFORCE SOLUTIONS,HWSI0001356,15165.76
Department of Health,Leicestershire Partnership NHS Trust,26/09/22,NURSE - BAND 2 - AGENCY,CAMHS ED Team,HCL NURSING,HNSI0001140,246.15
Department of Health,Leicestershire Partnership NHS Trust,26/09/22,NURSE - BAND 2 - AGENCY,CAMHS Inpatient Service,HCL NURSING,HNSI0001140,17963.51
Department of Health,Leicestershire Partnership NHS Trust,26/09/22,NURSE - BAND 5 - AGENCY,CAMHS Inpatient Service,HCL NURSING,HNSI0001140,5266.74
Department of Health,Leicestershire Partnership NHS Trust,26/09/22,Nurse - Band 6 -Agency,CAMHS Waiting List Monies,HCL NURSING,HNSI0001140,5736.42
Department of Health,Leicestershire Partnership NHS Trust,26/09/22,NURSE - BAND 2 - AGENCY,Langley Ward ED Inpatient Service,HCL NURSING,HNSI0001140,3454.94
Department of Health,Leicestershire Partnership NHS Trust,26/09/22,NURSE - BAND 5 - AGENCY,Langley Ward ED Inpatient Service,HCL NURSING,HNSI0001140,4197.61
Department of Health,Leicestershire Partnership NHS Trust,26/09/22,Nurse - Band 6 -Agency,AMH - Central Access Point,HCL NURSING,HNSI0001138,2760.27
Department of Health,Leicestershire Partnership NHS Trust,26/09/22,Nurse - Band 7 - Agency,Adult County- East Leicester CMHT,HCL NURSING,HNSI0001138,1002.91
Department of Health,Leicestershire Partnership NHS Trust,26/09/22,NURSE - BAND 2 - AGENCY,Agnes Unit,HCL NURSING,HNSI0001138,19395.47
Department of Health,Leicestershire Partnership NHS Trust,26/09/22,NURSE - BAND 5 - AGENCY,Agnes Unit,HCL NURSING,HNSI0001138,21825.57
Department of Health,Leicestershire Partnership NHS Trust,26/09/22,NURSE - BAND 2 - AGENCY,Ashby Ward (Bradgate Unit),HCL NURSING,HNSI0001138,13038.63
Department of Health,Leicestershire Partnership NHS Trust,26/09/22,NURSE - BAND 5 - AGENCY,Ashby Ward (Bradgate Unit),HCL NURSING,HNSI0001138,10228.90
Department of Health,Leicestershire Partnership NHS Trust,26/09/22,NURSE - BAND 2 - AGENCY,Beaumont Ward - Bradgate Unit,HCL NURSING,HNSI0001138,1916.46
Department of Health,Leicestershire Partnership NHS Trust,26/09/22,NURSE - BAND 5 - AGENCY,Beaumont Ward - Bradgate Unit,HCL NURSING,HNSI0001138,9799.04
Department of Health,Leicestershire Partnership NHS Trust,26/09/22,NURSE - BAND 2 - AGENCY,Belvoir Psychiatric Intensive Care Unit,HCL NURSING,HNSI0001138,1979.56
Department of Health,Leicestershire Partnership NHS Trust,26/09/22,NURSE - BAND 5 - AGENCY,Belvoir Psychiatric Intensive Care Unit,HCL NURSING,HNSI0001138,4759.66
Department of Health,Leicestershire Partnership NHS Trust,26/09/22,NURSE - BAND 2 - AGENCY,Bosworth Ward - Bradgate Unit,HCL NURSING,HNSI0001138,2389.41
Department of Health,Leicestershire Partnership NHS Trust,26/09/22,NURSE - BAND 5 - AGENCY,Bosworth Ward - Bradgate Unit,HCL NURSING,HNSI0001138,5236.73
Department of Health,Leicestershire Partnership NHS Trust,26/09/22,NURSE - BAND 2 - AGENCY,Bradgate Unit Site Services,HCL NURSING,HNSI0001138,1173.00
Department of Health,Leicestershire Partnership NHS Trust,26/09/22,NURSE - BAND 2 - AGENCY,Cedar (Willows),HCL NURSING,HNSI0001138,2638.64
Department of Health,Leicestershire Partnership NHS Trust,26/09/22,NURSE - BAND 5 - AGENCY,Cedar (Willows),HCL NURSING,HNSI0001138,1361.40
Department of Health,Leicestershire Partnership NHS Trust,26/09/22,Nurse - Band 6 -Agency,City West CMHT MHSOP,HCL NURSING,HNSI0001138,844.84
Department of Health,Leicestershire Partnership NHS Trust,26/09/22,NURSE - BAND 2 - AGENCY,Coleman Ward,HCL NURSING,HNSI0001138,10487.61
Department of Health,Leicestershire Partnership NHS Trust,26/09/22,NURSE - BAND 5 - AGENCY,Coleman Ward,HCL NURSING,HNSI0001138,7611.32
Department of Health,Leicestershire Partnership NHS Trust,26/09/22,NURSE - BAND 5 - AGENCY,Crisis Resolution,HCL NURSING,HNSI0001138,5968.26
Department of Health,Leicestershire Partnership NHS Trust,26/09/22,NURSE - BAND 2 - AGENCY,Griffin Ward (HPC),HCL NURSING,HNSI0001138,1170.27
Department of Health,Leicestershire Partnership NHS Trust,26/09/22,NURSE - BAND 5 - AGENCY,Griffin Ward (HPC),HCL NURSING,HNSI0001138,6960.96
Department of Health,Leicestershire Partnership NHS Trust,26/09/22,NURSE - BAND 2 - AGENCY,Gwendolen Ward,HCL NURSING,HNSI0001138,2007.56
Department of Health,Leicestershire Partnership NHS Trust,26/09/22,NURSE - BAND 5 - AGENCY,Gwendolen Ward,HCL NURSING,HNSI0001138,1063.43
Department of Health,Leicestershire Partnership NHS Trust,26/09/22,NURSE - BAND 2 - AGENCY,Heather Ward,HCL NURSING,HNSI0001138,1549.74
Department of Health,Leicestershire Partnership NHS Trust,26/09/22,NURSE - BAND 5 - AGENCY,Heather Ward,HCL NURSING,HNSI0001138,2698.42
Department of Health,Leicestershire Partnership NHS Trust,26/09/22,NURSE - BAND 2 - AGENCY,Kirby Ward,HCL NURSING,HNSI0001138,4657.43
Department of Health,Leicestershire Partnership NHS Trust,26/09/22,NURSE - BAND 5 - AGENCY,Kirby Ward,HCL NURSING,HNSI0001138,1965.04
Department of Health,Leicestershire Partnership NHS Trust,26/09/22,NURSE - BAND 2 - AGENCY,Maple Ward,HCL NURSING,HNSI0001138,2325.07
Department of Health,Leicestershire Partnership NHS Trust,26/09/22,NURSE - BAND 5 - AGENCY,Maple Ward,HCL NURSING,HNSI0001138,2488.15
Department of Health,Leicestershire Partnership NHS Trust,26/09/22,Nurse - Band 6 -Agency,Mental Health Liaison Team,HCL NURSING,HNSI0001138,1790.11
Department of Health,Leicestershire Partnership NHS Trust,26/09/22,NURSE - BAND 2 - AGENCY,Mill Lodge,HCL NURSING,HNSI0001138,1343.14
Department of Health,Leicestershire Partnership NHS Trust,26/09/22,NURSE - BAND 5 - AGENCY,Mill Lodge,HCL NURSING,HNSI0001138,4170.97
Department of Health,Leicestershire Partnership NHS Trust,26/09/22,NURSE - BAND 2 - AGENCY,Phoenix Ward (HPC),HCL NURSING,HNSI0001138,3908.80
Department of Health,Leicestershire Partnership NHS Trust,26/09/22,NURSE - BAND 5 - AGENCY,Place Of Safety Assessment Unit,HCL NURSING,HNSI0001138,1372.05
Department of Health,Leicestershire Partnership NHS Trust,26/09/22,NURSE - BAND 2 - AGENCY,Stewart House,HCL NURSING,HNSI0001138,1054.08
Department of Health,Leicestershire Partnership NHS Trust,26/09/22,NURSE - BAND 5 - AGENCY,Stewart House,HCL NURSING,HNSI0001138,1057.83
Department of Health,Leicestershire Partnership NHS Trust,26/09/22,NURSE - BAND 2 - AGENCY,Sycamore (Willows),HCL NURSING,HNSI0001138,5632.28
Department of Health,Leicestershire Partnership NHS Trust,26/09/22,NURSE - BAND 5 - AGENCY,Sycamore (Willows),HCL NURSING,HNSI0001138,2988.09
Department of Health,Leicestershire Partnership NHS Trust,26/09/22,NURSE - BAND 2 - AGENCY,Thornton Ward - Bradgate Unit,HCL NURSING,HNSI0001138,2205.59
Department of Health,Leicestershire Partnership NHS Trust,26/09/22,NURSE - BAND 5 - AGENCY,Thornton Ward - Bradgate Unit,HCL NURSING,HNSI0001138,2535.92
Department of Health,Leicestershire Partnership NHS Trust,26/09/22,NURSE - BAND 5 - AGENCY,Watermead Ward (Bradgate Unit),HCL NURSING,HNSI0001138,2256.22
Department of Health,Leicestershire Partnership NHS Trust,26/09/22,NURSE - BAND 2 - AGENCY,Welford Ward,HCL NURSING,HNSI0001138,6552.67
Department of Health,Leicestershire Partnership NHS Trust,26/09/22,NURSE - BAND 5 - AGENCY,Welford Ward,HCL NURSING,HNSI0001138,1553.90
Department of Health,Leicestershire Partnership NHS Trust,26/09/22,Nurse - Band 6 -Agency,CAMHS HUB / CAP,HCL WORKFORCE SOLUTIONS,HWSI0001357,11349.69
Department of Health,Leicestershire Partnership NHS Trust,26/09/22,Nurse - Band 6 -Agency,CAMHS Waiting List Monies,HCL WORKFORCE SOLUTIONS,HWSI0001357,19712.16
Department of Health,Leicestershire Partnership NHS Trust,26/09/22,Nurse - Band 6 -Agency,Crisis Response and Home Treatment,HCL WORKFORCE SOLUTIONS,HWSI0001357,1934.85
Department of Health,Leicestershire Partnership NHS Trust,26/09/22,Nurse - Band 6 -Agency,CAMHS HUB / CAP,HCL WORKFORCE SOLUTIONS,HWSI0001369,6254.67
Department of Health,Leicestershire Partnership NHS Trust,26/09/22,Nurse - Band 6 -Agency,CAMHS Waiting List Monies,HCL WORKFORCE SOLUTIONS,HWSI0001369,20350.49
Department of Health,Leicestershire Partnership NHS Trust,26/09/22,Nurse - Band 6 -Agency,Crisis Response and Home Treatment,HCL WORKFORCE SOLUTIONS,HWSI0001369,1934.85
Department of Health,Leicestershire Partnership NHS Trust,26/09/22,NURSE - BAND 2 - AGENCY,CAMHS ED Team,HCL NURSING,HNSI0001144,362.36
Department of Health,Leicestershire Partnership NHS Trust,26/09/22,NURSE - BAND 2 - AGENCY,CAMHS Inpatient Service,HCL NURSING,HNSI0001144,11249.26
Department of Health,Leicestershire Partnership NHS Trust,26/09/22,NURSE - BAND 5 - AGENCY,CAMHS Inpatient Service,HCL NURSING,HNSI0001144,8638.61
Department of Health,Leicestershire Partnership NHS Trust,26/09/22,Nurse - Band 6 -Agency,CAMHS Waiting List Monies,HCL NURSING,HNSI0001144,3324.83
Department of Health,Leicestershire Partnership NHS Trust,26/09/22,NURSE - BAND 2 - AGENCY,Langley Ward ED Inpatient Service,HCL NURSING,HNSI0001144,5464.03
Department of Health,Leicestershire Partnership NHS Trust,26/09/22,NURSE - BAND 5 - AGENCY,Langley Ward ED Inpatient Service,HCL NURSING,HNSI0001144,3084.67
Department of Health,Leicestershire Partnership NHS Trust,26/09/22,NURSE - BAND 2 - AGENCY,AMH - Central Access Point,HCL NURSING,HNSI0001134,14.13
Department of Health,Leicestershire Partnership NHS Trust,26/09/22,NURSE - BAND 5 - AGENCY,AMH - Central Access Point,HCL NURSING,HNSI0001134,16.62
Department of Health,Leicestershire Partnership NHS Trust,26/09/22,Nurse - Band 6 -Agency,AMH - Central Access Point,HCL NURSING,HNSI0001134,4852.65
Department of Health,Leicestershire Partnership NHS Trust,26/09/22,NURSE - BAND 2 - AGENCY,Adult County- East Leicester CMHT,HCL NURSING,HNSI0001134,3.22
Department of Health,Leicestershire Partnership NHS Trust,26/09/22,Nurse - Band 7 - Agency,Adult County- East Leicester CMHT,HCL NURSING,HNSI0001134,1076.71
Department of Health,Leicestershire Partnership NHS Trust,26/09/22,NURSE - BAND 2 - AGENCY,Agnes Unit,HCL NURSING,HNSI0001134,16167.46
Department of Health,Leicestershire Partnership NHS Trust,26/09/22,NURSE - BAND 5 - AGENCY,Agnes Unit,HCL NURSING,HNSI0001134,21541.34
Department of Health,Leicestershire Partnership NHS Trust,26/09/22,Nurse - Band 6 -Agency,Agnes Unit,HCL NURSING,HNSI0001134,243.26
Department of Health,Leicestershire Partnership NHS Trust,26/09/22,NURSE - BAND 2 - AGENCY,Ashby Ward (Bradgate Unit),HCL NURSING,HNSI0001134,7955.56
Department of Health,Leicestershire Partnership NHS Trust,26/09/22,NURSE - BAND 5 - AGENCY,Ashby Ward (Bradgate Unit),HCL NURSING,HNSI0001134,13376.01
Department of Health,Leicestershire Partnership NHS Trust,26/09/22,Nurse - Band 6 -Agency,Ashby Ward (Bradgate Unit),HCL NURSING,HNSI0001134,2026.10
Department of Health,Leicestershire Partnership NHS Trust,26/09/22,NURSE - BAND 2 - AGENCY,Beaumont Ward - Bradgate Unit,HCL NURSING,HNSI0001134,6611.21
Department of Health,Leicestershire Partnership NHS Trust,26/09/22,NURSE - BAND 5 - AGENCY,Beaumont Ward - Bradgate Unit,HCL NURSING,HNSI0001134,13462.21
Department of Health,Leicestershire Partnership NHS Trust,26/09/22,Nurse - Band 6 -Agency,Beaumont Ward - Bradgate Unit,HCL NURSING,HNSI0001134,631.65
Department of Health,Leicestershire Partnership NHS Trust,26/09/22,NURSE - BAND 2 - AGENCY,Belvoir Psychiatric Intensive Care Unit,HCL NURSING,HNSI0001134,3305.21
Department of Health,Leicestershire Partnership NHS Trust,26/09/22,NURSE - BAND 5 - AGENCY,Belvoir Psychiatric Intensive Care Unit,HCL NURSING,HNSI0001134,3400.53
Department of Health,Leicestershire Partnership NHS Trust,26/09/22,Nurse - Band 6 -Agency,Belvoir Psychiatric Intensive Care Unit,HCL NURSING,HNSI0001134,336.04
Department of Health,Leicestershire Partnership NHS Trust,26/09/22,NURSE - BAND 2 - AGENCY,Bosworth Ward - Bradgate Unit,HCL NURSING,HNSI0001134,1618.56
Department of Health,Leicestershire Partnership NHS Trust,26/09/22,NURSE - BAND 5 - AGENCY,Bosworth Ward - Bradgate Unit,HCL NURSING,HNSI0001134,6628.69
Department of Health,Leicestershire Partnership NHS Trust,26/09/22,Nurse - Band 6 -Agency,Bosworth Ward - Bradgate Unit,HCL NURSING,HNSI0001134,3.92
Department of Health,Leicestershire Partnership NHS Trust,26/09/22,NURSE - BAND 2 - AGENCY,Cedar (Willows),HCL NURSING,HNSI0001134,1194.95
Department of Health,Leicestershire Partnership NHS Trust,26/09/22,NURSE - BAND 5 - AGENCY,Cedar (Willows),HCL NURSING,HNSI0001134,1306.48
Department of Health,Leicestershire Partnership NHS Trust,26/09/22,Nurse - Band 6 -Agency,Cedar (Willows),HCL NURSING,HNSI0001134,207.62
Department of Health,Leicestershire Partnership NHS Trust,26/09/22,NURSE - BAND 2 - AGENCY,Coleman Ward,HCL NURSING,HNSI0001134,9047.89
Department of Health,Leicestershire Partnership NHS Trust,26/09/22,NURSE - BAND 5 - AGENCY,Coleman Ward,HCL NURSING,HNSI0001134,7638.29
Department of Health,Leicestershire Partnership NHS Trust,26/09/22,Nurse - Band 6 -Agency,Coleman Ward,HCL NURSING,HNSI0001134,154.01
Department of Health,Leicestershire Partnership NHS Trust,26/09/22,NURSE - BAND 5 - AGENCY,Crisis Resolution,HCL NURSING,HNSI0001134,657.16
Department of Health,Leicestershire Partnership NHS Trust,26/09/22,NURSE - BAND 2 - AGENCY,Griffin Ward (HPC),HCL NURSING,HNSI0001134,1023.46
Department of Health,Leicestershire Partnership NHS Trust,26/09/22,NURSE - BAND 5 - AGENCY,Griffin Ward (HPC),HCL NURSING,HNSI0001134,3572.50
Department of Health,Leicestershire Partnership NHS Trust,26/09/22,Nurse - Band 6 -Agency,Griffin Ward (HPC),HCL NURSING,HNSI0001134,418.55
Department of Health,Leicestershire Partnership NHS Trust,26/09/22,NURSE - BAND 2 - AGENCY,Gwendolen Ward,HCL NURSING,HNSI0001134,892.72
Department of Health,Leicestershire Partnership NHS Trust,26/09/22,NURSE - BAND 5 - AGENCY,Gwendolen Ward,HCL NURSING,HNSI0001134,732.63
Department of Health,Leicestershire Partnership NHS Trust,26/09/22,Nurse - Band 6 -Agency,Gwendolen Ward,HCL NURSING,HNSI0001134,0.23
Department of Health,Leicestershire Partnership NHS Trust,26/09/22,NURSE - BAND 2 - AGENCY,Heather Ward,HCL NURSING,HNSI0001134,700.87
Department of Health,Leicestershire Partnership NHS Trust,26/09/22,NURSE - BAND 5 - AGENCY,Heather Ward,HCL NURSING,HNSI0001134,953.24
Department of Health,Leicestershire Partnership NHS Trust,26/09/22,Nurse - Band 6 -Agency,Heather Ward,HCL NURSING,HNSI0001134,207.62
Department of Health,Leicestershire Partnership NHS Trust,26/09/22,NURSE - BAND 2 - AGENCY,Kirby Ward,HCL NURSING,HNSI0001134,891.94
Department of Health,Leicestershire Partnership NHS Trust,26/09/22,NURSE - BAND 5 - AGENCY,Kirby Ward,HCL NURSING,HNSI0001134,499.21
Department of Health,Leicestershire Partnership NHS Trust,26/09/22,Nurse - Band 6 -Agency,Kirby Ward,HCL NURSING,HNSI0001134,28.35
Department of Health,Leicestershire Partnership NHS Trust,26/09/22,NURSE - BAND 2 - AGENCY,Maple Ward,HCL NURSING,HNSI0001134,401.97
Department of Health,Leicestershire Partnership NHS Trust,26/09/22,NURSE - BAND 5 - AGENCY,Maple Ward,HCL NURSING,HNSI0001134,1744.40
Department of Health,Leicestershire Partnership NHS Trust,26/09/22,Nurse - Band 6 -Agency,Maple Ward,HCL NURSING,HNSI0001134,209.32
Department of Health,Leicestershire Partnership NHS Trust,26/09/22,NURSE - BAND 2 - AGENCY,Mental Health Liaison Team,HCL NURSING,HNSI0001134,12.66
Department of Health,Leicestershire Partnership NHS Trust,26/09/22,Nurse - Band 6 -Agency,Mental Health Liaison Team,HCL NURSING,HNSI0001134,1777.44
Department of Health,Leicestershire Partnership NHS Trust,26/09/22,NURSE - BAND 2 - AGENCY,Mill Lodge,HCL NURSING,HNSI0001134,331.99
Department of Health,Leicestershire Partnership NHS Trust,26/09/22,NURSE - BAND 5 - AGENCY,Mill Lodge,HCL NURSING,HNSI0001134,3720.08
Department of Health,Leicestershire Partnership NHS Trust,26/09/22,Nurse - Band 6 -Agency,Mill Lodge,HCL NURSING,HNSI0001134,7.51
Department of Health,Leicestershire Partnership NHS Trust,26/09/22,NURSE - BAND 2 - AGENCY,Phoenix Ward (HPC),HCL NURSING,HNSI0001134,933.22
Department of Health,Leicestershire Partnership NHS Trust,26/09/22,NURSE - BAND 5 - AGENCY,Phoenix Ward (HPC),HCL NURSING,HNSI0001134,3135.51
Department of Health,Leicestershire Partnership NHS Trust,26/09/22,Nurse - Band 6 -Agency,Phoenix Ward (HPC),HCL NURSING,HNSI0001134,212.82
Department of Health,Leicestershire Partnership NHS Trust,26/09/22,NURSE - BAND 2 - AGENCY,Place Of Safety Assessment Unit,HCL NURSING,HNSI0001134,3447.92
Department of Health,Leicestershire Partnership NHS Trust,26/09/22,NURSE - BAND 5 - AGENCY,Place Of Safety Assessment Unit,HCL NURSING,HNSI0001134,3509.78
Department of Health,Leicestershire Partnership NHS Trust,26/09/22,Nurse - Band 6 -Agency,Place Of Safety Assessment Unit,HCL NURSING,HNSI0001134,637.09
Department of Health,Leicestershire Partnership NHS Trust,26/09/22,NURSE - BAND 2 - AGENCY,Stewart House,HCL NURSING,HNSI0001134,11.43
Department of Health,Leicestershire Partnership NHS Trust,26/09/22,NURSE - BAND 5 - AGENCY,Stewart House,HCL NURSING,HNSI0001134,2095.93
Department of Health,Leicestershire Partnership NHS Trust,26/09/22,Nurse - Band 6 -Agency,Stewart House,HCL NURSING,HNSI0001134,2.47
Department of Health,Leicestershire Partnership NHS Trust,26/09/22,NURSE - BAND 2 - AGENCY,Sycamore (Willows),HCL NURSING,HNSI0001134,1937.29
Department of Health,Leicestershire Partnership NHS Trust,26/09/22,NURSE - BAND 5 - AGENCY,Sycamore (Willows),HCL NURSING,HNSI0001134,3985.73
Department of Health,Leicestershire Partnership NHS Trust,26/09/22,Nurse - Band 6 -Agency,Sycamore (Willows),HCL NURSING,HNSI0001134,6.24
Department of Health,Leicestershire Partnership NHS Trust,26/09/22,NURSE - BAND 2 - AGENCY,Thornton Ward - Bradgate Unit,HCL NURSING,HNSI0001134,1014.63
Department of Health,Leicestershire Partnership NHS Trust,26/09/22,NURSE - BAND 5 - AGENCY,Thornton Ward - Bradgate Unit,HCL NURSING,HNSI0001134,2280.07
Department of Health,Leicestershire Partnership NHS Trust,26/09/22,Nurse - Band 6 -Agency,Thornton Ward - Bradgate Unit,HCL NURSING,HNSI0001134,311.96
Department of Health,Leicestershire Partnership NHS Trust,26/09/22,NURSE - BAND 2 - AGENCY,Watermead Ward (Bradgate Unit),HCL NURSING,HNSI0001134,11.63
Department of Health,Leicestershire Partnership NHS Trust,26/09/22,NURSE - BAND 5 - AGENCY,Watermead Ward (Bradgate Unit),HCL NURSING,HNSI0001134,2675.39
Department of Health,Leicestershire Partnership NHS Trust,26/09/22,Nurse - Band 6 -Agency,Watermead Ward (Bradgate Unit),HCL NURSING,HNSI0001134,1.81
Department of Health,Leicestershire Partnership NHS Trust,26/09/22,NURSE - BAND 2 - AGENCY,Welford Ward,HCL NURSING,HNSI0001134,1259.50
Department of Health,Leicestershire Partnership NHS Trust,26/09/22,NURSE - BAND 5 - AGENCY,Welford Ward,HCL NURSING,HNSI0001134,2646.84
Department of Health,Leicestershire Partnership NHS Trust,27/09/22,Telephone equipment,"Bradgate Unit (including Glenvale day Unit) (P7, LPT)",VIRGIN MEDIA BUSINESS,60049249,41655.35
Department of Health,Leicestershire Partnership NHS Trust,27/09/22,FP10'S,Adult City Drugs,NHS BUS SERVICES AUTHORITY,1000074525,27528.34
Department of Health,Leicestershire Partnership NHS Trust,27/09/22,FP10'S,Adult County Drugs,NHS BUS SERVICES AUTHORITY,1000074525,16418.36
Department of Health,Leicestershire Partnership NHS Trust,27/09/22,FP10'S,CAMHS Outpatients,NHS BUS SERVICES AUTHORITY,1000074525,6790.43
Department of Health,Leicestershire Partnership NHS Trust,27/09/22,FP10'S,Community Paediatrics,NHS BUS SERVICES AUTHORITY,1000074525,10598.97
Department of Health,Leicestershire Partnership NHS Trust,27/09/22,FP10'S,Dementia Related Drugs and Investigations,NHS BUS SERVICES AUTHORITY,1000074525,6540.14
Department of Health,Leicestershire Partnership NHS Trust,27/09/22,FP10'S,Eating Disorders Outpatient Service,NHS BUS SERVICES AUTHORITY,1000074525,1404.98
Department of Health,Leicestershire Partnership NHS Trust,27/09/22,FP10'S,Forensic Services - Community,NHS BUS SERVICES AUTHORITY,1000074525,74.95
Department of Health,Leicestershire Partnership NHS Trust,27/09/22,FP10'S,LOROS Pharmacy,NHS BUS SERVICES AUTHORITY,1000074525,404.50
Department of Health,Leicestershire Partnership NHS Trust,27/09/22,FP10'S,Mental Health Liaison Team,NHS BUS SERVICES AUTHORITY,1000074525,77.97
Department of Health,Leicestershire Partnership NHS Trust,27/09/22,FP10'S,PIER Team - Early Intervention Services,NHS BUS SERVICES AUTHORITY,1000074525,11239.80
Department of Health,Leicestershire Partnership NHS Trust,27/09/22,FP10'S,Snr Med Staff (Inc Med Reps),NHS BUS SERVICES AUTHORITY,1000074525,6114.98
Department of Health,Leicestershire Partnership NHS Trust,28/09/22,Computer Software,Patients & Partnerships,HEALTHCARE COMS UK LTD,INVHEA00002746,28963.44
Department of Health,Leicestershire Partnership NHS Trust,29/09/22,Rent,"St Peters Health Center (Part 1st and 2nd floors) (P66, LPT)",LEICESTER LIFT CO,LEP1-SI1096,30082.84
Department of Health,Leicestershire Partnership NHS Trust,29/09/22,Computer Software,"Bridge Park Road - Units 2 and 3 (P148, LPT)",CIVICA UK LTD,C/SA253369,38946.00
Department of Health,Leicestershire Partnership NHS Trust,29/09/22,CHP Estates Management,Merlyn Vaz Centre (CHP),COMM HLTH PARTNERSHIPS LTD,0060259639,32051.45
Department of Health,Leicestershire Partnership NHS Trust,29/09/22,CHP Estates Management,Merlyn Vaz Centre (CHP),COMM HLTH PARTNERSHIPS LTD,0060259642,30202.89
